Workbook

Sheet גיליון1
A1: =[1]הערות!A1 -> V2.01 | B1: =[1]הערות!C2 -> הראל חברה לביטוח בע"מ | AU1: 'נספחים ב וג'!$
B2: דו"ח חודשי , שיעורי ההשקעות ורכוש קבוע מסך כל ההתחייבויות לתקופה שנסתיימה ביום - | L2: 2024-08-31 | AI2: =AJ2-1 ->  | AO2: =#REF!-1 ->  | AP2: =AQ2-1 -> 64 | AQ2: 65 | AR2: 66 | AS2: 67 | AT2: =AU2-1 -> 68 | AU2: 69 | AV2: =AU2+1 -> 70 | AW2: =AV2+1 -> 71 | AX2: 72 | AY2: 73 | AZ2: 74 | BA2: 75 | BB2: 76 | BC2: 77 | BD2: 78 | BE2: 79 | BF2: 80 | BG2: 81 | BH2: 82 | BI2: 83 | BJ2: 84 | BK2: 85 | BL2: 86 | BM2: 87 | BN2: 88 | BO2: 89 | BP2: 90 | BQ2: 91 | BR2: 92 | BS2: 93 | BT2: 94 | BU2: 95 | BV2: 96 | BW2: 97 | BX2: 98 | CF2: =BX2+1 -> 99
B3: =CONCATENATE([1]הערות!$G$103) -> הסכומים באלפי ש"ח | K3: =CONCATENATE(I1) ->  | AP3: =#REF!+1 ->  | AQ3: =AP3+1 ->  | CF3: =BX3+1 -> 
J6: סה"כ משתתף ברווחים | K6: ביטוח חיים
K7: 10 | L7: 11 | M7: 12 | N7: 13
I8: חזרה | K8: ='[2]נספחים ב וג'!$B$10 -> קרן ח' | L8: ='[2]נספחים ב וג'!$B$11 -> קרן ט' | M8: ='[2]נספחים ב וג'!$B$12 -> קרן י' | N8: ='[2]נספחים ב וג'!$B$13 -> קרן י' פוליסות שהונפקו לאחר 1.1.04 | O8: ='[2]נספחים ב וג'!$C$30 -> הראל-מסלול כללי | P8: ='[2]נספחים ב וג'!$C$31 -> הראל אשראי ואג"ח | Q8: ='[2]נספחים ב וג'!$C$32 -> הראל אשראי ואג"ח עם מניות (עד 25% מניות) | R8: ='[2]נספחים ב וג'!$C$33 -> הראל-מסלול מניות | S8: ='[2]נספחים ב וג'!$C$34 -> הראל מסלול כספי (שקלי) | T8: ='[2]נספחים ב וג'!$C$35 -> הראל מסלול משתתף ברווחים כספי (שקלי) | U8: ='[2]נספחים ב וג'!$C$36 -> הראל מסלול משתתף ברווחים אשראי ואג"ח | V8: ='[2]נספחים ב וג'!$C$37 -> הראל-מסלול משתתף ברווחים לפחות 75% מניות | W8: ='[2]נספחים ב וג'!$C$38 -> הראל-מסלול לבני 50 ומטה | X8: ='[2]נספחים ב וג'!$C$39 -> הראל-מסלול לבני 50 עד 60 | Y8: ='[2]נספחים ב וג'!$C$40 -> הראל-מסלול לבני 60 ומעלה | Z8: ='[2]נספחים ב וג'!$C$41 -> הראל-מסלול בסיסי למקבלי קצבה | AA8: ='[2]נספחים ב וג'!$C$42 -> הראל חברה לביטוח בע"מ מדרגות עד 50 | AB8: ='[2]נספחים ב וג'!$C$43 -> הראל מסלול לגילאי 50 עד 60 | AC8: ='[2]נספחים ב וג'!$C$44 -> הראל מסלול לגילאי 60 ומעלה | AD8: ='[2]נספחים ב וג'!$C$45 -> הראל מסלול בסיסי למקבלי קצבה | AE8: ='[2]נספחים ב וג'!$C$46 -> הראל מסלול עוקב מדד 500 P&S | AF8: ='[2]נספחים ב וג'!$C$47 -> הראל עוקב מדדי אג"ח | AG8: ='[2]נספחים ב וג'!$C$48 -> הראל מסלול עוקב מדדים גמיש | AH8: ='[2]נספחים ב וג'!$C$49 -> הראל מסלול משולב סחיר | AI8: הראל מסלול קיימות | AJ8: עוקב מדדי מניות | AK8: הראל מסלול עוקב מדדים- אג"ח עם מניות (עד 25% מניות) | AL8: הראל מסלול הלכה | AM8: הראל מסלול אג"ח סחיר | AN8: הראל מסלול מניות סחיר | AO8: הראל מסלול סחיר- אג"ח עם מניות (עד 25% מניות) | AP8: =INDIRECT(CONCATENATE($AU$1,"C$",AP$2)) ->  | AU8: =INDIRECT(CONCATENATE($AU$1,"C$",AU$2)) ->  | AV8: =INDIRECT(CONCATENATE($AU$1,"C$",AV$2)) ->  | CG8: אחר
A9: שורה | K9: =IF('[2]נספחים ב וג'!$N$10=0,0,CONCATENATE(VLOOKUP($B$1,[2]הערות!$D$89:$F$111,3,0),"0",K7)) -> 259010 | L9: =IF('[2]נספחים ב וג'!$N$11=0,0,CONCATENATE(VLOOKUP($B$1,[2]הערות!$D$89:$F$111,3,0),"0",L7)) -> 259011 | M9: =IF('[2]נספחים ב וג'!$N$12=0,0,CONCATENATE(VLOOKUP($B$1,[2]הערות!$D$89:$F$111,3,0),"0",M7)) -> 259012 | N9: =IF('[2]נספחים ב וג'!$N$13=0,0,CONCATENATE(VLOOKUP($B$1,[2]הערות!$D$89:$F$111,3,0),"0",N7)) -> 259013 | O9: ='[2]נספחים ב וג'!$B$30 -> 88 | P9: ='[2]נספחים ב וג'!$B$31 -> 89 | Q9: ='[2]נספחים ב וג'!$B$32 -> 90 | R9: ='[2]נספחים ב וג'!$B$33 -> 92 | S9: ='[2]נספחים ב וג'!$B$34 -> 93 | T9: ='[2]נספחים ב וג'!$B$35 -> 195 | U9: ='[2]נספחים ב וג'!$B$36 -> 196 | V9: ='[2]נספחים ב וג'!$B$37 -> 197 | W9: ='[2]נספחים ב וג'!$B$38 -> 9562 | X9: ='[2]נספחים ב וג'!$B$39 -> 9563 | Y9: ='[2]נספחים ב וג'!$B$40 -> 9564 | Z9: ='[2]נספחים ב וג'!$B$41 -> 9565 | AA9: ='[2]נספחים ב וג'!$B$42 -> 11400 | AB9: ='[2]נספחים ב וג'!$B$43 -> 11401 | AC9: ='[2]נספחים ב וג'!$B$44 -> 11402 | AD9: ='[2]נספחים ב וג'!$B$45 -> 11403 | AE9: ='[2]נספחים ב וג'!$B$46 -> 13434 | AF9: ='[2]נספחים ב וג'!$B$47 -> 13436 | AG9: ='[2]נספחים ב וג'!$B$48 -> 14414 | AH9: ='[2]נספחים ב וג'!$B$49 -> 14210 | AI9: 14211 | AJ9: 15029 | AK9: 15316 | AL9: 15317 | AM9: 15318 | AN9: 15319 | AO9: 15320 | AP9: =INDIRECT(CONCATENATE($AU$1,"b$",AP$2)) ->  | AU9: =INDIRECT(CONCATENATE($AU$1,"b$",AU$2)) ->  | AV9: =INDIRECT(CONCATENATE($AU$1,"b$",AV$2)) -> 
A10: 10 | B10: 1. | C10: השקעות | J10: 82783777.57 | K10: 3649.902962 | L10: 953058.0698 | M10: 24972485.46 | N10: 871752.3332 | O10: 21179019.66 | P10: 1529839.08 | Q10: 4028103.91 | R10: 2943406.987 | S10: 882427.7395 | T10: 46159.84952 | U10: 59344.36282 | V10: 242674.8297 | W10: 2707165.42 | X10: 1858239.85 | Y10: 3352300.475 | Z10: 3555335.439 | AA10: 31354.41005 | AB10: 155600.7861 | AC10: 261464.8103 | AD10: 2256827.676 | AE10: 2420167.46 | AF10: 372581.91 | AG10: 699868.73 | AH10: 3263207.37 | AI10: 14553.73 | AJ10: 333371.91 | AK10: 18055.39 | AL10: 9124.97 | AM10: 70517.28 | AN10: 17234.65 | AO10: 16140.09 | AP10: 0 | AQ10: 0 | AR10: 0 | AS10: 0 | AT10: 0 | AU10: 0 | AV10: 0 | AW10: 0 | AX10: 0 | AY10: 0 | AZ10: 0 | BA10: 0 | BB10: 0 | BC10: 0 | BD10: 0 | BE10: 0 | BF10: 0 | BG10: 0 | BH10: 0 | BI10: 0 | BJ10: 0 | BK10: 0 | BL10: 0 | BM10: 0 | BN10: 0 | BO10: 0 | BP10: 0 | BQ10: 0 | BR10: 0 | BS10: 0 | BT10: 0 | BU10: 0 | BV10: 0 | BW10: 0 | BX10: 0 | CF10: 0 | CG10: 3658743.03
A11: =A10+1 -> 11 | C11: א. | D11: מזומנים ושווי מזומנים | J11: 6588177.41 | K11: 223.4935678 | L11: 68227.25895 | M11: 2037113.321 | N11: 71112.59683 | O11: 1413266.23 | P11: 57356.96202 | Q11: 193550.4 | R11: 298933.2087 | S11: 94920.74022 | T11: 4965.30978 | U11: 2224.947976 | V11: 24646.12126 | W11: 137278.7465 | X11: 105375.7138 | Y11: 134796.4176 | Z11: 167812.549 | AA11: 1589.963464 | AB11: 8823.696198 | AC11: 10513.53243 | AD11: 106522.721 | AE11: 824272.22 | AF11: 16213.06 | AG11: 27751.2 | AH11: 388872.49 | AI11: 2175.37 | AJ11: 12645.37 | AK11: 636.35 | AL11: 819.12 | AM11: 3465.94 | AN11: 420.54 | AO11: 1693.74 | AP11: 0 | AQ11: 0 | AR11: 0 | AS11: 0 | AT11: 0 | AU11: 0 | AV11: 0 | AW11: 0 | AX11: 0 | AY11: 0 | AZ11: 0 | BA11: 0 | BB11: 0 | BC11: 0 | BD11: 0 | BE11: 0 | BF11: 0 | BG11: 0 | BH11: 0 | BI11: 0 | BJ11: 0 | BK11: 0 | BL11: 0 | BM11: 0 | BN11: 0 | BO11: 0 | BP11: 0 | BQ11: 0 | BR11: 0 | BS11: 0 | BT11: 0 | BU11: 0 | BV11: 0 | BW11: 0 | BX11: 0 | CF11: 0 | CG11: 369958.0803
A12: 12 | D12: (1 | E12: בישראל | J12: 6311387.581 | K12: 213.1092909 | L12: 65057.18672 | M12: 1942462.056 | N12: 67808.46192 | O12: 1333042.741 | P12: 57356.76183 | Q12: 192790.1588 | R12: 273649.8208 | S12: 94920.74022 | T12: 4965.30978 | U12: 2224.947976 | V12: 24646.12126 | W12: 125008.7029 | X12: 97818.19249 | Y12: 127680.4119 | Z12: 146777.7172 | AA12: 1589.963464 | AB12: 8823.696198 | AC12: 10513.53243 | AD12: 106522.721 | AE12: 824272.22 | AF12: 16213.06 | AG12: 27751.2 | AH12: 369578.9542 | AI12: 2175.37 | AJ12: 12645.37 | AK12: 636.35 | AL12: 819.12 | AM12: 3465.94 | AN12: 420.54 | AO12: 1658.674309 | AP12: 0 | AQ12: 0 | AR12: 0 | AS12: 0 | AT12: 0 | AU12: 0 | AV12: 0 | AW12: 0 | AX12: 0 | AY12: 0 | AZ12: 0 | BA12: 0 | BB12: 0 | BC12: 0 | BD12: 0 | BE12: 0 | BF12: 0 | BG12: 0 | BH12: 0 | BI12: 0 | BJ12: 0 | BK12: 0 | BL12: 0 | BM12: 0 | BN12: 0 | BO12: 0 | BP12: 0 | BQ12: 0 | BR12: 0 | BS12: 0 | BT12: 0 | BU12: 0 | BV12: 0 | BW12: 0 | BX12: 0 | CF12: 0 | CG12: 367878.4293
A13: 13 | E13: א) | F13: יתרות מזומנים ועו"ש בשקלים חדשים | J13: 3351116.341 | K13: 127.19329 | L13: 38829.07959 | M13: 1159349.452 | N13: 40471.16541 | O13: 737458.79 | P13: 38255.49184 | Q13: 140212.68 | R13: 161037.9755 | S13: 92812.92991 | T13: 4855.050092 | U13: 1483.978163 | V13: 13277.0845 | W13: 41617.37723 | X13: 55519.11488 | Y13: 66337.94012 | Z13: 80492.42552 | AA13: 482.0127729 | AB13: 4648.925119 | AC13: 5174.069883 | AD13: 51094.34448 | AE13: 127897.79 | AF13: 12734.34 | AG13: 23458.29 | AH13: 136270.77 | AI13: 2120.44 | AJ13: 12309.9 | AK13: 553.68 | AL13: 732.45 | AM13: 3074.81 | AN13: 366.22 | AO13: 1406.4 | CG13: 296654.1713
A14: 14 | E14: ב) | F14: יתרות מזומנים ועו"ש נקובים במט"ח | J14: 1906710.77 | K14: 64.78868629 | L14: 19778.44159 | M14: 590540.0193 | N14: 20614.87394 | O14: 555923.301 | P14: 14423.91059 | Q14: 41895.81885 | R14: 110593.8341 | S14: 2.98391141 | T14: 0.15608859 | U14: 559.5292177 | V14: 11202.65796 | W14: 77479.76339 | X14: 37784.36009 | Y14: 53367.74559 | Z14: 58550.5376 | AA14: 1039.482934 | AB14: 3796.728602 | AC14: 4717.468698 | AD14: 50518.57059 | AE14: 50771.04 | AF14: 3478.72 | AG14: 4292.91 | AH14: 133243.9642 | AI14: 54.93 | AJ14: 335.47 | AK14: 82.67 | AL14: 39.7 | AM14: 10.09 | AN14: 40.95 | AO14: 193.4543093 | CG14: 61311.89881
A15: 15 | E15: ג) | F15: פח"ק/פר"י | J15: 315268.8179 | K15: 21.08668242 | L15: 6437.26151 | M15: 192202.2278 | N15: 6709.493969 | O15: 39344.59 | P15: 4677.320898 | Q15: 10680.89 | R15: 1899.012292 | S15: 2104.826401 | T15: 110.103599 | U15: 181.4391017 | V15: 156.5677077 | W15: 5861.561353 | X15: 4485.743666 | Y15: 7949.364272 | Z15: 7681.217549 | AA15: 67.88864723 | AB15: 375.6163342 | AC15: 620.0157284 | AD15: 4875.822451 | AH15: 8428.18 | AL15: 46.97 | AM15: 381.04 | AN15: 11.48 | AO15: 58.67 | CG15: 9900.427859
A16: 16 | E16: ד) | F16: פק"מ לתקופה של עד שלושה חודשים | J16: 646655.6113 | K16: 0.04063217602 | L16: 12.40403481 | M16: 370.3567303 | N16: 12.92860273 | O16: 316.06 | P16: 0.03850629295 | Q16: 0.77 | R16: 118.9989071 | S16: 0 | T16: 0 | U16: 0.00149370705 | V16: 9.811092939 | W16: 50.00088933 | X16: 28.97385734 | Y16: 25.36188373 | Z16: 53.53651496 | AA16: 0.5791106725 | AB16: 2.426142662 | AC16: 1.978116272 | AD16: 33.98348504 | AE16: 645603.39 | AN16: 1.89 | AO16: 0.15 | CG16: 11.93132935
A17: 17 | E17: ה) | F17: פיקדון צמוד מדד עד שלושה חודשים | J17: 0 | K17: 0 | L17: 0 | M17: 0 | N17: 0 | P17: 0 | R17: 0 | S17: 0 | T17: 0 | U17: 0 | V17: 0 | W17: 0 | X17: 0 | Y17: 0 | Z17: 0 | AA17: 0 | AB17: 0 | AC17: 0 | AD17: 0 | CG17: 0
A18: 18 | E18: ו) | F18: פיקדון צמוד מט"ח עד שלושה חודשים (פצ"מ) | J18: 0 | K18: 0 | L18: 0 | M18: 0 | N18: 0 | P18: 0 | R18: 0 | S18: 0 | T18: 0 | U18: 0 | V18: 0 | W18: 0 | X18: 0 | Y18: 0 | Z18: 0 | AA18: 0 | AB18: 0 | AC18: 0 | AD18: 0 | CG18: 0
A19: 19 | E19: ז) | F19: פיקדונות במט"ח עד שלושה חודשים | J19: 91636.04 | K19: 0 | L19: 0 | M19: 0 | N19: 0 | P19: 0 | R19: 0 | S19: 0 | T19: 0 | U19: 0 | V19: 0 | W19: 0 | X19: 0 | Y19: 0 | Z19: 0 | AA19: 0 | AB19: 0 | AC19: 0 | AD19: 0 | AH19: 91636.04 | CG19: 0
A20: 20 | D20: (2 | E20: בחו"ל | J20: 276789.8297 | K20: 10.38427696 | L20: 3170.072232 | M20: 94651.26504 | N20: 3304.134916 | O20: 80223.48899 | P20: 0.2001941399 | Q20: 760.2411507 | R20: 25283.38792 | S20: 0 | T20: 0 | U20: 0 | V20: 0 | W20: 12270.04368 | X20: 7557.52131 | Y20: 7116.005715 | Z20: 21034.83181 | AA20: 0 | AB20: 0 | AC20: 0 | AD20: 0 | AE20: 0 | AF20: 0 | AG20: 0 | AH20: 19293.53577 | AI20: 0 | AJ20: 0 | AK20: 0 | AL20: 0 | AM20: 0 | AN20: 0 | AO20: 35.06569072 | AP20: 0 | AQ20: 0 | AR20: 0 | AS20: 0 | AT20: 0 | AU20: 0 | AV20: 0 | AW20: 0 | AX20: 0 | AY20: 0 | AZ20: 0 | BA20: 0 | BB20: 0 | BC20: 0 | BD20: 0 | BE20: 0 | BF20: 0 | BG20: 0 | BH20: 0 | BI20: 0 | BJ20: 0 | BK20: 0 | BL20: 0 | BM20: 0 | BN20: 0 | BO20: 0 | BP20: 0 | BQ20: 0 | BR20: 0 | BS20: 0 | BT20: 0 | BU20: 0 | BV20: 0 | BW20: 0 | BX20: 0 | CF20: 0 | CG20: 2079.651054
A21: 21 | E21: א) | F21: יתרות מזומנים ועו"ש נקובים במט"ח | J21: 276789.8297 | K21: 10.38427696 | L21: 3170.072232 | M21: 94651.26504 | N21: 3304.134916 | O21: 80223.48899 | P21: 0.2001941399 | Q21: 760.2411507 | R21: 25283.38792 | W21: 12270.04368 | X21: 7557.52131 | Y21: 7116.005715 | Z21: 21034.83181 | AH21: 19293.53577 | AO21: 35.06569072 | CG21: 2079.651054
A22: 22 | E22: ב) | F22: פיקדונות במט"ח עד שלושה חודשים | J22: 0 | K22: 0 | L22: 0 | M22: 0 | N22: 0 | P22: 0 | R22: 0 | S22: 0 | T22: 0 | U22: 0 | V22: 0 | W22: 0 | X22: 0 | Y22: 0 | Z22: 0 | AA22: 0 | AB22: 0 | AC22: 0 | AD22: 0 | CG22: 0
A23: 23 | W23: 0 | X23: 0 | Y23: 0 | Z23: 0 | AA23: 0 | AB23: 0 | AC23: 0 | AD23: 0 | CG23: 0
A24: 24 | C24: ב. | D24: ניירות ערך (למעט בחברות מוחזקות) | J24: 63746392.9 | K24: 2875.275358 | L24: 721352.0173 | M24: 18097637.32 | N24: 631761.6076 | O24: 16215894.21 | P24: 1166887.135 | Q24: 3341082.69 | R24: 2608121.569 | S24: 786784.6941 | T24: 41156.75591 | U24: 45265.00494 | V24: 215031.5809 | W24: 2239880.3 | X24: 1513781.641 | Y24: 2653927.866 | Z24: 2805337.357 | AA24: 25942.31031 | AB24: 126757.3792 | AC24: 206994.7939 | AD24: 1780749.833 | AE24: 1606932.94 | AF24: 355454.64 | AG24: 670865.74 | AH24: 2826524.75 | AI24: 12238.48 | AJ24: 320103.88 | AK24: 17304.36 | AL24: 8249.59 | AM24: 65897.9 | AN24: 16413.82 | AO24: 13981.58 | AP24: 0 | AQ24: 0 | AR24: 0 | AS24: 0 | AT24: 0 | AU24: 0 | AV24: 0 | AW24: 0 | AX24: 0 | AY24: 0 | AZ24: 0 | BA24: 0 | BB24: 0 | BC24: 0 | BD24: 0 | BE24: 0 | BF24: 0 | BG24: 0 | BH24: 0 | BI24: 0 | BJ24: 0 | BK24: 0 | BL24: 0 | BM24: 0 | BN24: 0 | BO24: 0 | BP24: 0 | BQ24: 0 | BR24: 0 | BS24: 0 | BT24: 0 | BU24: 0 | BV24: 0 | BW24: 0 | BX24: 0 | CF24: 0 | CG24: 2605203.88
A25: 25 | D25: (1 | E25: אגרות חוב ממשלתיות: | J25: 15605424.27 | K25: 1372.905233 | L25: 262714.2294 | M25: 4403738.994 | N25: 153727.9799 | O25: 3608061.28 | P25: 582633.4336 | Q25: 945631.2 | R25: 245429.458 | S25: 786784.6941 | T25: 41156.75591 | U25: 22601.07637 | V25: 20234.902 | W25: 527370.8074 | X25: 434431.1103 | Y25: 780754.8948 | Z25: 685254.6742 | AA25: 6108.012618 | AB25: 36377.33969 | AC25: 60895.4752 | AD25: 434980.5358 | AE25: 145103.45 | AF25: 0 | AG25: 0 | AH25: 481037.05 | AI25: 0 | AJ25: 0 | AK25: 0 | AL25: 8197.48 | AM25: 0 | AN25: 0 | AO25: 3752.18 | AP25: 0 | AQ25: 0 | AR25: 0 | AS25: 0 | AT25: 0 | AU25: 0 | AV25: 0 | AW25: 0 | AX25: 0 | AY25: 0 | AZ25: 0 | BA25: 0 | BB25: 0 | BC25: 0 | BD25: 0 | BE25: 0 | BF25: 0 | BG25: 0 | BH25: 0 | BI25: 0 | BJ25: 0 | BK25: 0 | BL25: 0 | BM25: 0 | BN25: 0 | BO25: 0 | BP25: 0 | BQ25: 0 | BR25: 0 | BS25: 0 | BT25: 0 | BU25: 0 | BV25: 0 | BW25: 0 | BX25: 0 | CF25: 0 | CG25: 927074.35
A26: 26 | E26: א) | F26: בישראל | J26: 15364898.28 | K26: 1371.410043 | L26: 262257.7836 | M26: 4390110.544 | N26: 153252.231 | O26: 3595896.4 | P26: 569960.2521 | Q26: 940993.93 | R26: 245429.458 | S26: 786784.6941 | T26: 41156.75591 | U26: 22109.46788 | V26: 20234.902 | W26: 526326.2158 | X26: 432789.8243 | Y26: 778020.6537 | Z26: 682848.2898 | AA26: 6095.914151 | AB26: 36239.90566 | AC26: 60682.21632 | AD26: 433453.0302 | AE26: 82670.65 | AF26: 0 | AG26: 0 | AH26: 361025.89 | AI26: 0 | AJ26: 0 | AK26: 0 | AL26: 8197.48 | AM26: 0 | AN26: 0 | AO26: 3719.45 | AP26: 0 | AQ26: 0 | AR26: 0 | AS26: 0 | AT26: 0 | AU26: 0 | AV26: 0 | AW26: 0 | AX26: 0 | AY26: 0 | AZ26: 0 | BA26: 0 | BB26: 0 | BC26: 0 | BD26: 0 | BE26: 0 | BF26: 0 | BG26: 0 | BH26: 0 | BI26: 0 | BJ26: 0 | BK26: 0 | BL26: 0 | BM26: 0 | BN26: 0 | BO26: 0 | BP26: 0 | BQ26: 0 | BR26: 0 | BS26: 0 | BT26: 0 | BU26: 0 | BV26: 0 | BW26: 0 | BX26: 0 | CF26: 0 | CG26: 923270.9327
A27: 27 | F27: (1) | G27: סחיר | J27: 15248784.87 | K27: 481.6430479 | L27: 147034.1418 | M27: 4390110.544 | N27: 153252.231 | O27: 3595896.4 | P27: 569960.2521 | Q27: 940993.93 | R27: 245429.458 | S27: 786784.6941 | T27: 41156.75591 | U27: 22109.46788 | V27: 20234.902 | W27: 526326.2158 | X27: 432789.8243 | Y27: 778020.6537 | Z27: 682848.2898 | AA27: 6095.914151 | AB27: 36239.90566 | AC27: 60682.21632 | AD27: 433453.0302 | AE27: 82670.65 | AF27: 0 | AG27: 0 | AH27: 361025.89 | AI27: 0 | AJ27: 0 | AK27: 0 | AL27: 8197.48 | AM27: 0 | AN27: 0 | AO27: 3719.45 | AP27: 0 | AQ27: 0 | AR27: 0 | AS27: 0 | AT27: 0 | AU27: 0 | AV27: 0 | AW27: 0 | AX27: 0 | AY27: 0 | AZ27: 0 | BA27: 0 | BB27: 0 | BC27: 0 | BD27: 0 | BE27: 0 | BF27: 0 | BG27: 0 | BH27: 0 | BI27: 0 | BJ27: 0 | BK27: 0 | BL27: 0 | BM27: 0 | BN27: 0 | BO27: 0 | BP27: 0 | BQ27: 0 | BR27: 0 | BS27: 0 | BT27: 0 | BU27: 0 | BV27: 0 | BW27: 0 | BX27: 0 | CF27: 0 | CG27: 923270.9327
A28: 28 | G28: (א) | H28: צמוד מדד | J28: 8321377.042 | K28: 243.4540419 | L28: 74320.7159 | M28: 2219050.313 | N28: 77463.74671 | O28: 2800449.4 | P28: 186906.013 | Q28: 453011.81 | R28: 0 | S28: 0 | T28: 0 | U28: 7250.316975 | V28: 0 | W28: 468506.6426 | X28: 259976.5625 | Y28: 480366.2022 | Z28: 392614.6019 | AA28: 5426.247423 | AB28: 21769.28747 | AC28: 37466.46783 | AD28: 249220.7881 | AL28: 4041.49 | AO28: 1155.51 | CG28: 582137.4721
A29: 29 | G29: (ג) | H29: לא צמוד בריבית קבועה | J29: 4160969.862 | K29: 173.1192493 | L29: 52849.18025 | M29: 1577958.293 | N29: 55084.17758 | O29: 583431.46 | P29: 308337.1673 | Q29: 410361.91 | R29: 9833.830961 | S29: 31506.01824 | T29: 1648.081759 | U29: 11960.78265 | V29: 810.7690389 | W29: 47845.85891 | X29: 140663.2699 | Y29: 278105.5969 | Z29: 243439.0791 | AA29: 554.1510941 | AB29: 11778.52007 | AC29: 21691.02312 | AD29: 154528.3309 | AH29: 22903.19 | AL29: 2806.75 | AO29: 2291.61 | CG29: 190407.6921
A30: 30 | G30: (ד) | H30: לא צמוד בריבית משתנה | J30: 605127.0233 | K30: 29.82514356 | L30: 9104.905402 | M30: 271852.1067 | N30: 9489.952799 | O30: 99376.01 | P30: 55266.21472 | Q30: 45998.81 | R30: 0.9977394583 | S30: 0 | T30: 0 | U30: 2143.845285 | V30: 0.08226054168 | W30: 6794.19953 | X30: 19338.41653 | Y30: 13557.76359 | Z30: 31192.08517 | AA30: 78.69046955 | AB30: 1619.313467 | AC30: 1057.446405 | AD30: 19799.86483 | AH30: 1712.51 | AL30: 578.14 | AO30: 202.44 | CG30: 15933.40325
A31: 31 | G31: (ה) | H31: צמוד מט"ח | J31: 0 | K31: 0 | L31: 0 | M31: 0 | N31: 0 | P31: 0 | R31: 0 | S31: 0 | T31: 0 | U31: 0 | V31: 0 | W31: 0 | X31: 0 | Y31: 0 | Z31: 0 | AA31: 0 | AB31: 0 | AC31: 0 | AD31: 0 | CG31: 0
A32: 32 | G32: (ו) | H32: מק"מ | J32: 2161310.945 | K32: 35.24461315 | L32: 10759.34029 | M32: 321249.8312 | N32: 11214.35391 | O32: 112639.53 | P32: 19450.85704 | Q32: 31621.4 | R32: 235594.6293 | S32: 755278.6758 | T32: 39508.67415 | U32: 754.522964 | V32: 19424.0507 | W32: 3179.514836 | X32: 12811.57535 | Y32: 5991.091039 | Z32: 15602.52361 | AA32: 36.8251645 | AB32: 1072.784654 | AC32: 467.2789607 | AD32: 9904.046388 | AE32: 82670.65 | AH32: 336410.19 | AL32: 771.1 | AO32: 69.89 | CG32: 134792.3652
A33: 33 | F33: (2) | G33: לא סחיר | J33: 116113.4088 | K33: 889.766995 | L33: 115223.6418 | M33: 0 | N33: 0 | O33: 0 | P33: 0 | Q33: 0 | R33: 0 | S33: 0 | T33: 0 | U33: 0 | V33: 0 | W33: 0 | X33: 0 | Y33: 0 | Z33: 0 | AA33: 0 | AB33: 0 | AC33: 0 | AD33: 0 | AE33: 0 | AF33: 0 | AG33: 0 | AH33: 0 | AI33: 0 | AJ33: 0 | AK33: 0 | AL33: 0 | AM33: 0 | AN33: 0 | AO33: 0 | AP33: 0 | AQ33: 0 | AR33: 0 | AS33: 0 | AT33: 0 | AU33: 0 | AV33: 0 | AW33: 0 | AX33: 0 | AY33: 0 | AZ33: 0 | BA33: 0 | BB33: 0 | BC33: 0 | BD33: 0 | BE33: 0 | BF33: 0 | BG33: 0 | BH33: 0 | BI33: 0 | BJ33: 0 | BK33: 0 | BL33: 0 | BM33: 0 | BN33: 0 | BO33: 0 | BP33: 0 | BQ33: 0 | BR33: 0 | BS33: 0 | BT33: 0 | BU33: 0 | BV33: 0 | BW33: 0 | BX33: 0 | CF33: 0 | CG33: 0
A34: 34 | G34: (א) | H34: אג"ח מיועדות - הסכמי "חץ" כולל אג"ח של חברת החשמל | J34: 116113.4088 | K34: 889.766995 | L34: 115223.6418 | M34: 0 | N34: 0 | P34: 0 | R34: 0 | S34: 0 | T34: 0 | U34: 0 | V34: 0 | W34: 0 | X34: 0 | Y34: 0 | Z34: 0 | AA34: 0 | AB34: 0 | AC34: 0 | AD34: 0 | CG34: 0
A35: 35 | G35: (ב) | H35: אג"ח לא סחירות אחרות | J35: 0 | K35: 0 | L35: 0 | M35: 0 | N35: 0 | P35: 0 | R35: 0 | S35: 0 | T35: 0 | U35: 0 | V35: 0 | W35: 0 | X35: 0 | Y35: 0 | Z35: 0 | AA35: 0 | AB35: 0 | AC35: 0 | AD35: 0 | CG35: 0
A36: 36 | E36: ב) | F36: בחו"ל | J36: 240525.9873 | K36: 1.49518974 | L36: 456.4457875 | M36: 13628.4501 | N36: 475.7489273 | O36: 12164.88 | P36: 12673.18151 | Q36: 4637.27 | R36: 0 | S36: 0 | T36: 0 | U36: 491.608491 | V36: 0 | W36: 1044.591533 | X36: 1641.285972 | Y36: 2734.241123 | Z36: 2406.384379 | AA36: 12.09846691 | AB36: 137.4340279 | AC36: 213.2588775 | AD36: 1527.505621 | AE36: 62432.8 | AF36: 0 | AG36: 0 | AH36: 120011.16 | AI36: 0 | AJ36: 0 | AK36: 0 | AL36: 0 | AM36: 0 | AN36: 0 | AO36: 32.73 | AP36: 0 | AQ36: 0 | AR36: 0 | AS36: 0 | AT36: 0 | AU36: 0 | AV36: 0 | AW36: 0 | AX36: 0 | AY36: 0 | AZ36: 0 | BA36: 0 | BB36: 0 | BC36: 0 | BD36: 0 | BE36: 0 | BF36: 0 | BG36: 0 | BH36: 0 | BI36: 0 | BJ36: 0 | BK36: 0 | BL36: 0 | BM36: 0 | BN36: 0 | BO36: 0 | BP36: 0 | BQ36: 0 | BR36: 0 | BS36: 0 | BT36: 0 | BU36: 0 | BV36: 0 | BW36: 0 | BX36: 0 | CF36: 0 | CG36: 3803.417296
A37: 37 | F37: (1) | G37: סחיר | J37: 240525.9873 | K37: 1.49518974 | L37: 456.4457875 | M37: 13628.4501 | N37: 475.7489273 | O37: 12164.88 | P37: 12673.18151 | Q37: 4637.27 | R37: 0 | S37: 0 | T37: 0 | U37: 491.608491 | V37: 0 | W37: 1044.591533 | X37: 1641.285972 | Y37: 2734.241123 | Z37: 2406.384379 | AA37: 12.09846691 | AB37: 137.4340279 | AC37: 213.2588775 | AD37: 1527.505621 | AE37: 62432.8 | AF37: 0 | AG37: 0 | AH37: 120011.16 | AI37: 0 | AJ37: 0 | AK37: 0 | AL37: 0 | AM37: 0 | AN37: 0 | AO37: 32.73 | AP37: 0 | AQ37: 0 | AR37: 0 | AS37: 0 | AT37: 0 | AU37: 0 | AV37: 0 | AW37: 0 | AX37: 0 | AY37: 0 | AZ37: 0 | BA37: 0 | BB37: 0 | BC37: 0 | BD37: 0 | BE37: 0 | BF37: 0 | BG37: 0 | BH37: 0 | BI37: 0 | BJ37: 0 | BK37: 0 | BL37: 0 | BM37: 0 | BN37: 0 | BO37: 0 | BP37: 0 | BQ37: 0 | BR37: 0 | BS37: 0 | BT37: 0 | BU37: 0 | BV37: 0 | BW37: 0 | BX37: 0 | CF37: 0 | CG37: 3803.417296
A38: 38 | G38: (א) | H38: ממשלת ישראל שהונפקו בחו"ל | J38: 0 | K38: 0 | L38: 0 | M38: 0 | N38: 0 | P38: 0 | R38: 0 | S38: 0 | T38: 0 | U38: 0 | V38: 0 | W38: 0 | X38: 0 | Y38: 0 | Z38: 0 | AA38: 0 | AB38: 0 | AC38: 0 | AD38: 0 | CG38: 0
A39: 39 | G39: (ב) | H39: שהנפיקה ממשלה זרה | J39: 240525.9873 | K39: 1.49518974 | L39: 456.4457875 | M39: 13628.4501 | N39: 475.7489273 | O39: 12164.88 | P39: 12673.18151 | Q39: 4637.27 | R39: 0 | S39: 0 | T39: 0 | U39: 491.608491 | V39: 0 | W39: 1044.591533 | X39: 1641.285972 | Y39: 2734.241123 | Z39: 2406.384379 | AA39: 12.09846691 | AB39: 137.4340279 | AC39: 213.2588775 | AD39: 1527.505621 | AE39: 62432.8 | AH39: 120011.16 | AO39: 32.73 | CG39: 3803.417296
A40: 40 | F40: (2) | G40: לא סחיר | J40: 0 | K40: 0 | L40: 0 | M40: 0 | N40: 0 | O40: 0 | P40: 0 | Q40: 0 | R40: 0 | S40: 0 | T40: 0 | U40: 0 | V40: 0 | W40: 0 | X40: 0 | Y40: 0 | Z40: 0 | AA40: 0 | AB40: 0 | AC40: 0 | AD40: 0 | AE40: 0 | AF40: 0 | AG40: 0 | AH40: 0 | AI40: 0 | AJ40: 0 | AK40: 0 | AL40: 0 | AM40: 0 | AN40: 0 | AO40: 0 | AP40: 0 | AQ40: 0 | AR40: 0 | AS40: 0 | AT40: 0 | AU40: 0 | AV40: 0 | AW40: 0 | AX40: 0 | AY40: 0 | AZ40: 0 | BA40: 0 | BB40: 0 | BC40: 0 | BD40: 0 | BE40: 0 | BF40: 0 | BG40: 0 | BH40: 0 | BI40: 0 | BJ40: 0 | BK40: 0 | BL40: 0 | BM40: 0 | BN40: 0 | BO40: 0 | BP40: 0 | BQ40: 0 | BR40: 0 | BS40: 0 | BT40: 0 | BU40: 0 | BV40: 0 | BW40: 0 | BX40: 0 | CF40: 0 | CG40: 0
A41: 41 | G41: (א) | H41: ממשלת ישראל שהונפקו בחו"ל | J41: 0 | K41: 0 | L41: 0 | M41: 0 | N41: 0 | P41: 0 | R41: 0 | S41: 0 | T41: 0 | U41: 0 | V41: 0 | W41: 0 | X41: 0 | Y41: 0 | Z41: 0 | AA41: 0 | AB41: 0 | AC41: 0 | AD41: 0 | CG41: 0
A42: 42 | G42: (ב) | H42: שהנפיקה ממשלה זרה | J42: 0 | K42: 0 | L42: 0 | M42: 0 | N42: 0 | P42: 0 | R42: 0 | S42: 0 | T42: 0 | U42: 0 | V42: 0 | W42: 0 | X42: 0 | Y42: 0 | Z42: 0 | AA42: 0 | AB42: 0 | AC42: 0 | AD42: 0 | CG42: 0
A43: 43 | W43: 0 | X43: 0 | Y43: 0 | Z43: 0 | AA43: 0 | AB43: 0 | AC43: 0 | AD43: 0 | CG43: 0
A44: 44 | D44: (2 | E44: תעודות חוב מסחריות: | J44: 0 | K44: 0 | L44: 0 | M44: 0 | N44: 0 | O44: 0 | P44: 0 | Q44: 0 | R44: 0 | S44: 0 | T44: 0 | U44: 0 | V44: 0 | W44: 0 | X44: 0 | Y44: 0 | Z44: 0 | AA44: 0 | AB44: 0 | AC44: 0 | AD44: 0 | AE44: 0 | AF44: 0 | AG44: 0 | AH44: 0 | AI44: 0 | AJ44: 0 | AK44: 0 | AL44: 0 | AM44: 0 | AN44: 0 | AO44: 0 | AP44: 0 | AQ44: 0 | AR44: 0 | AS44: 0 | AT44: 0 | AU44: 0 | AV44: 0 | AW44: 0 | AX44: 0 | AY44: 0 | AZ44: 0 | BA44: 0 | BB44: 0 | BC44: 0 | BD44: 0 | BE44: 0 | BF44: 0 | BG44: 0 | BH44: 0 | BI44: 0 | BJ44: 0 | BK44: 0 | BL44: 0 | BM44: 0 | BN44: 0 | BO44: 0 | BP44: 0 | BQ44: 0 | BR44: 0 | BS44: 0 | BT44: 0 | BU44: 0 | BV44: 0 | BW44: 0 | BX44: 0 | CF44: 0 | CG44: 0
A45: 45 | E45: א) | F45: בישראל | J45: 0 | K45: 0 | L45: 0 | M45: 0 | N45: 0 | O45: 0 | P45: 0 | Q45: 0 | R45: 0 | S45: 0 | T45: 0 | U45: 0 | V45: 0 | W45: 0 | X45: 0 | Y45: 0 | Z45: 0 | AA45: 0 | AB45: 0 | AC45: 0 | AD45: 0 | AE45: 0 | AF45: 0 | AG45: 0 | AH45: 0 | AI45: 0 | AJ45: 0 | AK45: 0 | AL45: 0 | AM45: 0 | AN45: 0 | AO45: 0 | AP45: 0 | AQ45: 0 | AR45: 0 | AS45: 0 | AT45: 0 | AU45: 0 | AV45: 0 | AW45: 0 | AX45: 0 | AY45: 0 | AZ45: 0 | BA45: 0 | BB45: 0 | BC45: 0 | BD45: 0 | BE45: 0 | BF45: 0 | BG45: 0 | BH45: 0 | BI45: 0 | BJ45: 0 | BK45: 0 | BL45: 0 | BM45: 0 | BN45: 0 | BO45: 0 | BP45: 0 | BQ45: 0 | BR45: 0 | BS45: 0 | BT45: 0 | BU45: 0 | BV45: 0 | BW45: 0 | BX45: 0 | CF45: 0 | CG45: 0
A46: 46 | F46: (1) | G46: סחיר | J46: 0 | K46: 0 | L46: 0 | M46: 0 | N46: 0 | O46: 0 | P46: 0 | Q46: 0 | R46: 0 | S46: 0 | T46: 0 | U46: 0 | V46: 0 | W46: 0 | X46: 0 | Y46: 0 | Z46: 0 | AA46: 0 | AB46: 0 | AC46: 0 | AD46: 0 | AE46: 0 | AF46: 0 | AG46: 0 | AH46: 0 | AI46: 0 | AJ46: 0 | AK46: 0 | AL46: 0 | AM46: 0 | AN46: 0 | AO46: 0 | AP46: 0 | AQ46: 0 | AR46: 0 | AS46: 0 | AT46: 0 | AU46: 0 | AV46: 0 | AW46: 0 | AX46: 0 | AY46: 0 | AZ46: 0 | BA46: 0 | BB46: 0 | BC46: 0 | BD46: 0 | BE46: 0 | BF46: 0 | BG46: 0 | BH46: 0 | BI46: 0 | BJ46: 0 | BK46: 0 | BL46: 0 | BM46: 0 | BN46: 0 | BO46: 0 | BP46: 0 | BQ46: 0 | BR46: 0 | BS46: 0 | BT46: 0 | BU46: 0 | BV46: 0 | BW46: 0 | BX46: 0 | CF46: 0 | CG46: 0
A47: 47 | G47: (א) | H47: דרוג AA- ומעלה | J47: 0 | K47: 0 | L47: 0 | M47: 0 | N47: 0 | O47: 0 | P47: 0 | Q47: 0 | R47: 0 | S47: 0 | T47: 0 | U47: 0 | V47: 0 | W47: 0 | X47: 0 | Y47: 0 | Z47: 0 | AA47: 0 | AB47: 0 | AC47: 0 | AD47: 0 | AE47: 0 | AF47: 0 | AG47: 0 | AH47: 0 | AI47: 0 | AJ47: 0 | AK47: 0 | AL47: 0 | AM47: 0 | AN47: 0 | AO47: 0 | AP47: 0 | AQ47: 0 | AR47: 0 | AS47: 0 | AT47: 0 | AU47: 0 | AV47: 0 | AW47: 0 | AX47: 0 | AY47: 0 | AZ47: 0 | BA47: 0 | BB47: 0 | BC47: 0 | BD47: 0 | BE47: 0 | BF47: 0 | BG47: 0 | BH47: 0 | BI47: 0 | BJ47: 0 | BK47: 0 | BL47: 0 | BM47: 0 | BN47: 0 | BO47: 0 | BP47: 0 | BQ47: 0 | BR47: 0 | BS47: 0 | BT47: 0 | BU47: 0 | BV47: 0 | BW47: 0 | BX47: 0 | CF47: 0 | CG47: 0
A48: 48 | H48: a | I48: צמוד מדד | J48: 0 | K48: 0 | L48: 0 | M48: 0 | N48: 0 | P48: 0 | R48: 0 | S48: 0 | T48: 0 | U48: 0 | V48: 0 | W48: 0 | X48: 0 | Y48: 0 | Z48: 0 | AA48: 0 | AB48: 0 | AC48: 0 | AD48: 0 | CG48: 0
A49: 49 | H49: b | I49: לא צמוד | J49: 0 | K49: 0 | L49: 0 | M49: 0 | N49: 0 | P49: 0 | R49: 0 | S49: 0 | T49: 0 | U49: 0 | V49: 0 | W49: 0 | X49: 0 | Y49: 0 | Z49: 0 | AA49: 0 | AB49: 0 | AC49: 0 | AD49: 0 | CG49: 0
A50: 50 | H50: c | I50: צמוד מט"ח | J50: 0 | K50: 0 | L50: 0 | M50: 0 | N50: 0 | P50: 0 | R50: 0 | S50: 0 | T50: 0 | U50: 0 | V50: 0 | W50: 0 | X50: 0 | Y50: 0 | Z50: 0 | AA50: 0 | AB50: 0 | AC50: 0 | AD50: 0 | CG50: 0
A51: 51 | G51: (ב) | H51: דרוג BBB- ועד A+ | J51: 0 | K51: 0 | L51: 0 | M51: 0 | N51: 0 | O51: 0 | P51: 0 | Q51: 0 | R51: 0 | S51: 0 | T51: 0 | U51: 0 | V51: 0 | W51: 0 | X51: 0 | Y51: 0 | Z51: 0 | AA51: 0 | AB51: 0 | AC51: 0 | AD51: 0 | AE51: 0 | AF51: 0 | AG51: 0 | AH51: 0 | AI51: 0 | AJ51: 0 | AK51: 0 | AL51: 0 | AM51: 0 | AN51: 0 | AO51: 0 | AP51: 0 | AQ51: 0 | AR51: 0 | AS51: 0 | AT51: 0 | AU51: 0 | AV51: 0 | AW51: 0 | AX51: 0 | AY51: 0 | AZ51: 0 | BA51: 0 | BB51: 0 | BC51: 0 | BD51: 0 | BE51: 0 | BF51: 0 | BG51: 0 | BH51: 0 | BI51: 0 | BJ51: 0 | BK51: 0 | BL51: 0 | BM51: 0 | BN51: 0 | BO51: 0 | BP51: 0 | BQ51: 0 | BR51: 0 | BS51: 0 | BT51: 0 | BU51: 0 | BV51: 0 | BW51: 0 | BX51: 0 | CF51: 0 | CG51: 0
A52: 52 | H52: a | I52: צמוד מדד | J52: 0 | K52: 0 | L52: 0 | M52: 0 | N52: 0 | P52: 0 | R52: 0 | S52: 0 | T52: 0 | U52: 0 | V52: 0 | W52: 0 | X52: 0 | Y52: 0 | Z52: 0 | AA52: 0 | AB52: 0 | AC52: 0 | AD52: 0 | CG52: 0
A53: 53 | H53: b | I53: לא צמוד | J53: 0 | K53: 0 | L53: 0 | M53: 0 | N53: 0 | P53: 0 | R53: 0 | S53: 0 | T53: 0 | U53: 0 | V53: 0 | W53: 0 | X53: 0 | Y53: 0 | Z53: 0 | AA53: 0 | AB53: 0 | AC53: 0 | AD53: 0 | CG53: 0
A54: 54 | H54: c | I54: צמוד מט"ח | J54: 0 | K54: 0 | L54: 0 | M54: 0 | N54: 0 | P54: 0 | R54: 0 | S54: 0 | T54: 0 | U54: 0 | V54: 0 | W54: 0 | X54: 0 | Y54: 0 | Z54: 0 | AA54: 0 | AB54: 0 | AC54: 0 | AD54: 0 | CG54: 0
A55: 55 | G55: (ג) | H55: דרוג נמוך מ- BBB- או לא מדורג | J55: 0 | K55: 0 | L55: 0 | M55: 0 | N55: 0 | O55: 0 | P55: 0 | Q55: 0 | R55: 0 | S55: 0 | T55: 0 | U55: 0 | V55: 0 | W55: 0 | X55: 0 | Y55: 0 | Z55: 0 | AA55: 0 | AB55: 0 | AC55: 0 | AD55: 0 | AE55: 0 | AF55: 0 | AG55: 0 | AH55: 0 | AI55: 0 | AJ55: 0 | AK55: 0 | AL55: 0 | AM55: 0 | AN55: 0 | AO55: 0 | AP55: 0 | AQ55: 0 | AR55: 0 | AS55: 0 | AT55: 0 | AU55: 0 | AV55: 0 | AW55: 0 | AX55: 0 | AY55: 0 | AZ55: 0 | BA55: 0 | BB55: 0 | BC55: 0 | BD55: 0 | BE55: 0 | BF55: 0 | BG55: 0 | BH55: 0 | BI55: 0 | BJ55: 0 | BK55: 0 | BL55: 0 | BM55: 0 | BN55: 0 | BO55: 0 | BP55: 0 | BQ55: 0 | BR55: 0 | BS55: 0 | BT55: 0 | BU55: 0 | BV55: 0 | BW55: 0 | BX55: 0 | CF55: 0 | CG55: 0
A56: 56 | H56: a | I56: צמוד מדד | J56: 0 | K56: 0 | L56: 0 | M56: 0 | N56: 0 | P56: 0 | R56: 0 | S56: 0 | T56: 0 | U56: 0 | V56: 0 | W56: 0 | X56: 0 | Y56: 0 | Z56: 0 | AA56: 0 | AB56: 0 | AC56: 0 | AD56: 0 | CG56: 0
A57: 57 | H57: b | I57: לא צמוד | J57: 0 | K57: 0 | L57: 0 | M57: 0 | N57: 0 | P57: 0 | R57: 0 | S57: 0 | T57: 0 | U57: 0 | V57: 0 | W57: 0 | X57: 0 | Y57: 0 | Z57: 0 | AA57: 0 | AB57: 0 | AC57: 0 | AD57: 0 | CG57: 0
A58: 58 | H58: c | I58: צמוד מט"ח | J58: 0 | K58: 0 | L58: 0 | M58: 0 | N58: 0 | P58: 0 | R58: 0 | S58: 0 | T58: 0 | U58: 0 | V58: 0 | W58: 0 | X58: 0 | Y58: 0 | Z58: 0 | AA58: 0 | AB58: 0 | AC58: 0 | AD58: 0 | CG58: 0
A59: 59 | F59: (2) | G59: לא סחיר | J59: 0 | K59: 0 | L59: 0 | M59: 0 | N59: 0 | O59: 0 | P59: 0 | Q59: 0 | R59: 0 | S59: 0 | T59: 0 | U59: 0 | V59: 0 | W59: 0 | X59: 0 | Y59: 0 | Z59: 0 | AA59: 0 | AB59: 0 | AC59: 0 | AD59: 0 | AE59: 0 | AF59: 0 | AG59: 0 | AH59: 0 | AI59: 0 | AJ59: 0 | AK59: 0 | AL59: 0 | AM59: 0 | AN59: 0 | AO59: 0 | AP59: 0 | AQ59: 0 | AR59: 0 | AS59: 0 | AT59: 0 | AU59: 0 | AV59: 0 | AW59: 0 | AX59: 0 | AY59: 0 | AZ59: 0 | BA59: 0 | BB59: 0 | BC59: 0 | BD59: 0 | BE59: 0 | BF59: 0 | BG59: 0 | BH59: 0 | BI59: 0 | BJ59: 0 | BK59: 0 | BL59: 0 | BM59: 0 | BN59: 0 | BO59: 0 | BP59: 0 | BQ59: 0 | BR59: 0 | BS59: 0 | BT59: 0 | BU59: 0 | BV59: 0 | BW59: 0 | BX59: 0 | CF59: 0 | CG59: 0
A60: 60 | G60: (א) | H60: =$H$47 -> דרוג AA- ומעלה | J60: 0 | K60: 0 | L60: 0 | M60: 0 | N60: 0 | O60: 0 | P60: 0 | Q60: 0 | R60: 0 | S60: 0 | T60: 0 | U60: 0 | V60: 0 | W60: 0 | X60: 0 | Y60: 0 | Z60: 0 | AA60: 0 | AB60: 0 | AC60: 0 | AD60: 0 | AE60: 0 | AF60: 0 | AG60: 0 | AH60: 0 | AI60: 0 | AJ60: 0 | AK60: 0 | AL60: 0 | AM60: 0 | AN60: 0 | AO60: 0 | AP60: 0 | AQ60: 0 | AR60: 0 | AS60: 0 | AT60: 0 | AU60: 0 | AV60: 0 | AW60: 0 | AX60: 0 | AY60: 0 | AZ60: 0 | BA60: 0 | BB60: 0 | BC60: 0 | BD60: 0 | BE60: 0 | BF60: 0 | BG60: 0 | BH60: 0 | BI60: 0 | BJ60: 0 | BK60: 0 | BL60: 0 | BM60: 0 | BN60: 0 | BO60: 0 | BP60: 0 | BQ60: 0 | BR60: 0 | BS60: 0 | BT60: 0 | BU60: 0 | BV60: 0 | BW60: 0 | BX60: 0 | CF60: 0 | CG60: 0
A61: 61 | H61: a | I61: צמוד מדד | J61: 0 | K61: 0 | L61: 0 | M61: 0 | N61: 0 | P61: 0 | R61: 0 | S61: 0 | T61: 0 | U61: 0 | V61: 0 | W61: 0 | X61: 0 | Y61: 0 | Z61: 0 | AA61: 0 | AB61: 0 | AC61: 0 | AD61: 0 | CG61: 0
A62: 62 | H62: b | I62: לא צמוד | J62: 0 | K62: 0 | L62: 0 | M62: 0 | N62: 0 | P62: 0 | R62: 0 | S62: 0 | T62: 0 | U62: 0 | V62: 0 | W62: 0 | X62: 0 | Y62: 0 | Z62: 0 | AA62: 0 | AB62: 0 | AC62: 0 | AD62: 0 | CG62: 0
A63: 63 | H63: c | I63: צמוד מט"ח | J63: 0 | K63: 0 | L63: 0 | M63: 0 | N63: 0 | P63: 0 | R63: 0 | S63: 0 | T63: 0 | U63: 0 | V63: 0 | W63: 0 | X63: 0 | Y63: 0 | Z63: 0 | AA63: 0 | AB63: 0 | AC63: 0 | AD63: 0 | CG63: 0
A64: 64 | G64: (ב) | H64: =$H$51 -> דרוג BBB- ועד A+ | J64: 0 | K64: 0 | L64: 0 | M64: 0 | N64: 0 | O64: 0 | P64: 0 | Q64: 0 | R64: 0 | S64: 0 | T64: 0 | U64: 0 | V64: 0 | W64: 0 | X64: 0 | Y64: 0 | Z64: 0 | AA64: 0 | AB64: 0 | AC64: 0 | AD64: 0 | AE64: 0 | AF64: 0 | AG64: 0 | AH64: 0 | AI64: 0 | AJ64: 0 | AK64: 0 | AL64: 0 | AM64: 0 | AN64: 0 | AO64: 0 | AP64: 0 | AQ64: 0 | AR64: 0 | AS64: 0 | AT64: 0 | AU64: 0 | AV64: 0 | AW64: 0 | AX64: 0 | AY64: 0 | AZ64: 0 | BA64: 0 | BB64: 0 | BC64: 0 | BD64: 0 | BE64: 0 | BF64: 0 | BG64: 0 | BH64: 0 | BI64: 0 | BJ64: 0 | BK64: 0 | BL64: 0 | BM64: 0 | BN64: 0 | BO64: 0 | BP64: 0 | BQ64: 0 | BR64: 0 | BS64: 0 | BT64: 0 | BU64: 0 | BV64: 0 | BW64: 0 | BX64: 0 | CF64: 0 | CG64: 0
A65: 65 | H65: a | I65: צמוד מדד | J65: 0 | K65: 0 | L65: 0 | M65: 0 | N65: 0 | P65: 0 | R65: 0 | S65: 0 | T65: 0 | U65: 0 | V65: 0 | W65: 0 | X65: 0 | Y65: 0 | Z65: 0 | AA65: 0 | AB65: 0 | AC65: 0 | AD65: 0 | CG65: 0
A66: 66 | H66: b | I66: לא צמוד | J66: 0 | K66: 0 | L66: 0 | M66: 0 | N66: 0 | P66: 0 | R66: 0 | S66: 0 | T66: 0 | U66: 0 | V66: 0 | W66: 0 | X66: 0 | Y66: 0 | Z66: 0 | AA66: 0 | AB66: 0 | AC66: 0 | AD66: 0 | CG66: 0
A67: 67 | H67: c | I67: צמוד מט"ח | J67: 0 | K67: 0 | L67: 0 | M67: 0 | N67: 0 | P67: 0 | R67: 0 | S67: 0 | T67: 0 | U67: 0 | V67: 0 | W67: 0 | X67: 0 | Y67: 0 | Z67: 0 | AA67: 0 | AB67: 0 | AC67: 0 | AD67: 0 | CG67: 0
A68: 68 | G68: (ג) | H68: בדרוג נמוך מ- BBB- או לא מדורג עם בטוחה מספקת | J68: 0 | K68: 0 | L68: 0 | M68: 0 | N68: 0 | O68: 0 | P68: 0 | Q68: 0 | R68: 0 | S68: 0 | T68: 0 | U68: 0 | V68: 0 | W68: 0 | X68: 0 | Y68: 0 | Z68: 0 | AA68: 0 | AB68: 0 | AC68: 0 | AD68: 0 | AE68: 0 | AF68: 0 | AG68: 0 | AH68: 0 | AI68: 0 | AJ68: 0 | AK68: 0 | AL68: 0 | AM68: 0 | AN68: 0 | AO68: 0 | AP68: 0 | AQ68: 0 | AR68: 0 | AS68: 0 | AT68: 0 | AU68: 0 | AV68: 0 | AW68: 0 | AX68: 0 | AY68: 0 | AZ68: 0 | BA68: 0 | BB68: 0 | BC68: 0 | BD68: 0 | BE68: 0 | BF68: 0 | BG68: 0 | BH68: 0 | BI68: 0 | BJ68: 0 | BK68: 0 | BL68: 0 | BM68: 0 | BN68: 0 | BO68: 0 | BP68: 0 | BQ68: 0 | BR68: 0 | BS68: 0 | BT68: 0 | BU68: 0 | BV68: 0 | BW68: 0 | BX68: 0 | CF68: 0 | CG68: 0
A69: 69 | H69: a | I69: צמוד מדד | J69: 0 | K69: 0 | L69: 0 | M69: 0 | N69: 0 | P69: 0 | R69: 0 | S69: 0 | T69: 0 | U69: 0 | V69: 0 | W69: 0 | X69: 0 | Y69: 0 | Z69: 0 | AA69: 0 | AB69: 0 | AC69: 0 | AD69: 0 | CG69: 0
A70: 70 | H70: b | I70: לא צמוד | J70: 0 | K70: 0 | L70: 0 | M70: 0 | N70: 0 | P70: 0 | R70: 0 | S70: 0 | T70: 0 | U70: 0 | V70: 0 | W70: 0 | X70: 0 | Y70: 0 | Z70: 0 | AA70: 0 | AB70: 0 | AC70: 0 | AD70: 0 | CG70: 0
A71: 71 | H71: c | I71: צמוד מט"ח | J71: 0 | K71: 0 | L71: 0 | M71: 0 | N71: 0 | P71: 0 | R71: 0 | S71: 0 | T71: 0 | U71: 0 | V71: 0 | W71: 0 | X71: 0 | Y71: 0 | Z71: 0 | AA71: 0 | AB71: 0 | AC71: 0 | AD71: 0 | CG71: 0
A72: 72 | G72: (ד) | H72: =$H$55 -> דרוג נמוך מ- BBB- או לא מדורג | J72: 0 | K72: 0 | L72: 0 | M72: 0 | N72: 0 | O72: 0 | P72: 0 | Q72: 0 | R72: 0 | S72: 0 | T72: 0 | U72: 0 | V72: 0 | W72: 0 | X72: 0 | Y72: 0 | Z72: 0 | AA72: 0 | AB72: 0 | AC72: 0 | AD72: 0 | AE72: 0 | AF72: 0 | AG72: 0 | AH72: 0 | AI72: 0 | AJ72: 0 | AK72: 0 | AL72: 0 | AM72: 0 | AN72: 0 | AO72: 0 | AP72: 0 | AQ72: 0 | AR72: 0 | AS72: 0 | AT72: 0 | AU72: 0 | AV72: 0 | AW72: 0 | AX72: 0 | AY72: 0 | AZ72: 0 | BA72: 0 | BB72: 0 | BC72: 0 | BD72: 0 | BE72: 0 | BF72: 0 | BG72: 0 | BH72: 0 | BI72: 0 | BJ72: 0 | BK72: 0 | BL72: 0 | BM72: 0 | BN72: 0 | BO72: 0 | BP72: 0 | BQ72: 0 | BR72: 0 | BS72: 0 | BT72: 0 | BU72: 0 | BV72: 0 | BW72: 0 | BX72: 0 | CF72: 0 | CG72: 0
A73: 73 | H73: a | I73: צמוד מדד | J73: 0 | K73: 0 | L73: 0 | M73: 0 | N73: 0 | P73: 0 | R73: 0 | S73: 0 | T73: 0 | U73: 0 | V73: 0 | W73: 0 | X73: 0 | Y73: 0 | Z73: 0 | AA73: 0 | AB73: 0 | AC73: 0 | AD73: 0 | CG73: 0
A74: 74 | H74: b | I74: לא צמוד | J74: 0 | K74: 0 | L74: 0 | M74: 0 | N74: 0 | P74: 0 | R74: 0 | S74: 0 | T74: 0 | U74: 0 | V74: 0 | W74: 0 | X74: 0 | Y74: 0 | Z74: 0 | AA74: 0 | AB74: 0 | AC74: 0 | AD74: 0 | CG74: 0
A75: =A74+1 -> 75 | H75: c | I75: צמוד מט"ח | J75: 0 | K75: 0 | L75: 0 | M75: 0 | N75: 0 | P75: 0 | R75: 0 | S75: 0 | T75: 0 | U75: 0 | V75: 0 | W75: 0 | X75: 0 | Y75: 0 | Z75: 0 | AA75: 0 | AB75: 0 | AC75: 0 | AD75: 0 | CG75: 0
A76: 76 | E76: ב) | F76: בחו"ל | J76: 0 | K76: 0 | L76: 0 | M76: 0 | N76: 0 | O76: 0 | P76: 0 | Q76: 0 | R76: 0 | S76: 0 | T76: 0 | U76: 0 | V76: 0 | W76: 0 | X76: 0 | Y76: 0 | Z76: 0 | AA76: 0 | AB76: 0 | AC76: 0 | AD76: 0 | AE76: 0 | AF76: 0 | AG76: 0 | AH76: 0 | AI76: 0 | AJ76: 0 | AK76: 0 | AL76: 0 | AM76: 0 | AN76: 0 | AO76: 0 | AP76: 0 | AQ76: 0 | AR76: 0 | AS76: 0 | AT76: 0 | AU76: 0 | AV76: 0 | AW76: 0 | AX76: 0 | AY76: 0 | AZ76: 0 | BA76: 0 | BB76: 0 | BC76: 0 | BD76: 0 | BE76: 0 | BF76: 0 | BG76: 0 | BH76: 0 | BI76: 0 | BJ76: 0 | BK76: 0 | BL76: 0 | BM76: 0 | BN76: 0 | BO76: 0 | BP76: 0 | BQ76: 0 | BR76: 0 | BS76: 0 | BT76: 0 | BU76: 0 | BV76: 0 | BW76: 0 | BX76: 0 | CF76: 0 | CG76: 0
A77: 77 | F77: (1) | G77: סחיר - חברות ישראליות | J77: 0 | K77: 0 | L77: 0 | M77: 0 | N77: 0 | O77: 0 | P77: 0 | Q77: 0 | R77: 0 | S77: 0 | T77: 0 | U77: 0 | V77: 0 | W77: 0 | X77: 0 | Y77: 0 | Z77: 0 | AA77: 0 | AB77: 0 | AC77: 0 | AD77: 0 | AE77: 0 | AF77: 0 | AG77: 0 | AH77: 0 | AI77: 0 | AJ77: 0 | AK77: 0 | AL77: 0 | AM77: 0 | AN77: 0 | AO77: 0 | AP77: 0 | AQ77: 0 | AR77: 0 | AS77: 0 | AT77: 0 | AU77: 0 | AV77: 0 | AW77: 0 | AX77: 0 | AY77: 0 | AZ77: 0 | BA77: 0 | BB77: 0 | BC77: 0 | BD77: 0 | BE77: 0 | BF77: 0 | BG77: 0 | BH77: 0 | BI77: 0 | BJ77: 0 | BK77: 0 | BL77: 0 | BM77: 0 | BN77: 0 | BO77: 0 | BP77: 0 | BQ77: 0 | BR77: 0 | BS77: 0 | BT77: 0 | BU77: 0 | BV77: 0 | BW77: 0 | BX77: 0 | CF77: 0 | CG77: 0
A78: 78 | G78: (א) | H78: דרוג A- ומעלה | J78: 0 | K78: 0 | L78: 0 | M78: 0 | N78: 0 | P78: 0 | R78: 0 | S78: 0 | T78: 0 | U78: 0 | V78: 0 | W78: 0 | X78: 0 | Y78: 0 | Z78: 0 | AA78: 0 | AB78: 0 | AC78: 0 | AD78: 0 | CG78: 0
A79: 79 | G79: (ב) | H79: דרוג BBB- ועד BBB+ | J79: 0 | K79: 0 | L79: 0 | M79: 0 | N79: 0 | P79: 0 | R79: 0 | S79: 0 | T79: 0 | U79: 0 | V79: 0 | W79: 0 | X79: 0 | Y79: 0 | Z79: 0 | AA79: 0 | AB79: 0 | AC79: 0 | AD79: 0 | CG79: 0
A80: 80 | G80: (ג) | H80: דרוג נמוך מ- BBB- או לא מדורג | J80: 0 | K80: 0 | L80: 0 | M80: 0 | N80: 0 | P80: 0 | R80: 0 | S80: 0 | T80: 0 | U80: 0 | V80: 0 | W80: 0 | X80: 0 | Y80: 0 | Z80: 0 | AA80: 0 | AB80: 0 | AC80: 0 | AD80: 0 | CG80: 0
A81: 81 | F81: (2) | G81: לא סחיר - חברות ישראליות | J81: 0 | K81: 0 | L81: 0 | M81: 0 | N81: 0 | O81: 0 | P81: 0 | Q81: 0 | R81: 0 | S81: 0 | T81: 0 | U81: 0 | V81: 0 | W81: 0 | X81: 0 | Y81: 0 | Z81: 0 | AA81: 0 | AB81: 0 | AC81: 0 | AD81: 0 | AE81: 0 | AF81: 0 | AG81: 0 | AH81: 0 | AI81: 0 | AJ81: 0 | AK81: 0 | AL81: 0 | AM81: 0 | AN81: 0 | AO81: 0 | AP81: 0 | AQ81: 0 | AR81: 0 | AS81: 0 | AT81: 0 | AU81: 0 | AV81: 0 | AW81: 0 | AX81: 0 | AY81: 0 | AZ81: 0 | BA81: 0 | BB81: 0 | BC81: 0 | BD81: 0 | BE81: 0 | BF81: 0 | BG81: 0 | BH81: 0 | BI81: 0 | BJ81: 0 | BK81: 0 | BL81: 0 | BM81: 0 | BN81: 0 | BO81: 0 | BP81: 0 | BQ81: 0 | BR81: 0 | BS81: 0 | BT81: 0 | BU81: 0 | BV81: 0 | BW81: 0 | BX81: 0 | CF81: 0 | CG81: 0
A82: 82 | G82: (א) | H82: =$H$78 -> דרוג A- ומעלה | J82: 0 | K82: 0 | L82: 0 | M82: 0 | N82: 0 | P82: 0 | R82: 0 | S82: 0 | T82: 0 | U82: 0 | V82: 0 | W82: 0 | X82: 0 | Y82: 0 | Z82: 0 | AA82: 0 | AB82: 0 | AC82: 0 | AD82: 0 | CG82: 0
A83: 83 | G83: (ב) | H83: =$H$79 -> דרוג BBB- ועד BBB+ | J83: 0 | K83: 0 | L83: 0 | M83: 0 | N83: 0 | P83: 0 | R83: 0 | S83: 0 | T83: 0 | U83: 0 | V83: 0 | W83: 0 | X83: 0 | Y83: 0 | Z83: 0 | AA83: 0 | AB83: 0 | AC83: 0 | AD83: 0 | CG83: 0
A84: 84 | G84: (ג) | H84: =$H$68 -> בדרוג נמוך מ- BBB- או לא מדורג עם בטוחה מספקת | J84: 0 | K84: 0 | L84: 0 | M84: 0 | N84: 0 | P84: 0 | R84: 0 | S84: 0 | T84: 0 | U84: 0 | V84: 0 | W84: 0 | X84: 0 | Y84: 0 | Z84: 0 | AA84: 0 | AB84: 0 | AC84: 0 | AD84: 0 | CG84: 0
A85: 85 | G85: (ד) | H85: =H80 -> דרוג נמוך מ- BBB- או לא מדורג | J85: 0 | K85: 0 | L85: 0 | M85: 0 | N85: 0 | P85: 0 | R85: 0 | S85: 0 | T85: 0 | U85: 0 | V85: 0 | W85: 0 | X85: 0 | Y85: 0 | Z85: 0 | AA85: 0 | AB85: 0 | AC85: 0 | AD85: 0 | CG85: 0
A86: 86 | F86: (3) | G86: סחיר - חברות זרות | J86: 0 | K86: 0 | L86: 0 | M86: 0 | N86: 0 | O86: 0 | P86: 0 | Q86: 0 | R86: 0 | S86: 0 | T86: 0 | U86: 0 | V86: 0 | W86: 0 | X86: 0 | Y86: 0 | Z86: 0 | AA86: 0 | AB86: 0 | AC86: 0 | AD86: 0 | AE86: 0 | AF86: 0 | AG86: 0 | AH86: 0 | AI86: 0 | AJ86: 0 | AK86: 0 | AL86: 0 | AM86: 0 | AN86: 0 | AO86: 0 | AP86: 0 | AQ86: 0 | AR86: 0 | AS86: 0 | AT86: 0 | AU86: 0 | AV86: 0 | AW86: 0 | AX86: 0 | AY86: 0 | AZ86: 0 | BA86: 0 | BB86: 0 | BC86: 0 | BD86: 0 | BE86: 0 | BF86: 0 | BG86: 0 | BH86: 0 | BI86: 0 | BJ86: 0 | BK86: 0 | BL86: 0 | BM86: 0 | BN86: 0 | BO86: 0 | BP86: 0 | BQ86: 0 | BR86: 0 | BS86: 0 | BT86: 0 | BU86: 0 | BV86: 0 | BW86: 0 | BX86: 0 | CF86: 0 | CG86: 0
A87: 87 | G87: (א) | H87: =$H$78 -> דרוג A- ומעלה | J87: 0 | K87: 0 | L87: 0 | M87: 0 | N87: 0 | P87: 0 | R87: 0 | S87: 0 | T87: 0 | U87: 0 | V87: 0 | W87: 0 | X87: 0 | Y87: 0 | Z87: 0 | AA87: 0 | AB87: 0 | AC87: 0 | AD87: 0 | CG87: 0
A88: 88 | G88: (ב) | H88: =$H$79 -> דרוג BBB- ועד BBB+ | J88: 0 | K88: 0 | L88: 0 | M88: 0 | N88: 0 | P88: 0 | R88: 0 | S88: 0 | T88: 0 | U88: 0 | V88: 0 | W88: 0 | X88: 0 | Y88: 0 | Z88: 0 | AA88: 0 | AB88: 0 | AC88: 0 | AD88: 0 | CG88: 0
A89: 89 | G89: (ג) | H89: =$H$80 -> דרוג נמוך מ- BBB- או לא מדורג | J89: 0 | K89: 0 | L89: 0 | M89: 0 | N89: 0 | P89: 0 | R89: 0 | S89: 0 | T89: 0 | U89: 0 | V89: 0 | W89: 0 | X89: 0 | Y89: 0 | Z89: 0 | AA89: 0 | AB89: 0 | AC89: 0 | AD89: 0 | CG89: 0
A90: 90 | F90: (4) | G90: לא סחיר - חברות זרות | J90: 0 | K90: 0 | L90: 0 | M90: 0 | N90: 0 | O90: 0 | P90: 0 | Q90: 0 | R90: 0 | S90: 0 | T90: 0 | U90: 0 | V90: 0 | W90: 0 | X90: 0 | Y90: 0 | Z90: 0 | AA90: 0 | AB90: 0 | AC90: 0 | AD90: 0 | AE90: 0 | AF90: 0 | AG90: 0 | AH90: 0 | AI90: 0 | AJ90: 0 | AK90: 0 | AL90: 0 | AM90: 0 | AN90: 0 | AO90: 0 | AP90: 0 | AQ90: 0 | AR90: 0 | AS90: 0 | AT90: 0 | AU90: 0 | AV90: 0 | AW90: 0 | AX90: 0 | AY90: 0 | AZ90: 0 | BA90: 0 | BB90: 0 | BC90: 0 | BD90: 0 | BE90: 0 | BF90: 0 | BG90: 0 | BH90: 0 | BI90: 0 | BJ90: 0 | BK90: 0 | BL90: 0 | BM90: 0 | BN90: 0 | BO90: 0 | BP90: 0 | BQ90: 0 | BR90: 0 | BS90: 0 | BT90: 0 | BU90: 0 | BV90: 0 | BW90: 0 | BX90: 0 | CF90: 0 | CG90: 0
A91: 91 | G91: (א) | H91: =$H$78 -> דרוג A- ומעלה | J91: 0 | K91: 0 | L91: 0 | M91: 0 | N91: 0 | P91: 0 | R91: 0 | S91: 0 | T91: 0 | U91: 0 | V91: 0 | W91: 0 | X91: 0 | Y91: 0 | Z91: 0 | AA91: 0 | AB91: 0 | AC91: 0 | AD91: 0 | CG91: 0
A92: 92 | G92: (ב) | H92: =$H$79 -> דרוג BBB- ועד BBB+ | J92: 0 | K92: 0 | L92: 0 | M92: 0 | N92: 0 | P92: 0 | R92: 0 | S92: 0 | T92: 0 | U92: 0 | V92: 0 | W92: 0 | X92: 0 | Y92: 0 | Z92: 0 | AA92: 0 | AB92: 0 | AC92: 0 | AD92: 0 | CG92: 0
A93: 93 | G93: (ג) | H93: =$H$68 -> בדרוג נמוך מ- BBB- או לא מדורג עם בטוחה מספקת | J93: 0 | K93: 0 | L93: 0 | M93: 0 | N93: 0 | P93: 0 | R93: 0 | S93: 0 | T93: 0 | U93: 0 | V93: 0 | W93: 0 | X93: 0 | Y93: 0 | Z93: 0 | AA93: 0 | AB93: 0 | AC93: 0 | AD93: 0 | CG93: 0
A94: 94 | G94: (ד) | H94: =H89 -> דרוג נמוך מ- BBB- או לא מדורג | J94: 0 | K94: 0 | L94: 0 | M94: 0 | N94: 0 | P94: 0 | R94: 0 | S94: 0 | T94: 0 | U94: 0 | V94: 0 | W94: 0 | X94: 0 | Y94: 0 | Z94: 0 | AA94: 0 | AB94: 0 | AC94: 0 | AD94: 0 | CG94: 0
A95: 95 | W95: 0 | X95: 0 | Y95: 0 | Z95: 0 | AA95: 0 | AB95: 0 | AC95: 0 | AD95: 0 | CG95: 0
A96: 96 | D96: (3 | E96: אג"ח קונצרני: | J96: 8638707.353 | K96: 217.7718576 | L96: 66480.55721 | M96: 1984960.714 | N96: 69292.02689 | O96: 1766167.8 | P96: 379434.301 | Q96: 1047047.08 | R96: 7.769434115 | S96: 0 | T96: 0 | U96: 14718.729 | V96: 0.6405658848 | W96: 173413.8594 | X96: 227537.0628 | Y96: 558303.0946 | Z96: 518335.2038 | AA96: 2008.480611 | AB96: 19052.94724 | AC96: 43545.20539 | AD96: 329024.7162 | AE96: 0 | AF96: 0 | AG96: 0 | AH96: 877700.42 | AI96: 0 | AJ96: 0 | AK96: 0 | AL96: 0 | AM96: 55759.09 | AN96: 0 | AO96: 5905.58 | AP96: 0 | AQ96: 0 | AR96: 0 | AS96: 0 | AT96: 0 | AU96: 0 | AV96: 0 | AW96: 0 | AX96: 0 | AY96: 0 | AZ96: 0 | BA96: 0 | BB96: 0 | BC96: 0 | BD96: 0 | BE96: 0 | BF96: 0 | BG96: 0 | BH96: 0 | BI96: 0 | BJ96: 0 | BK96: 0 | BL96: 0 | BM96: 0 | BN96: 0 | BO96: 0 | BP96: 0 | BQ96: 0 | BR96: 0 | BS96: 0 | BT96: 0 | BU96: 0 | BV96: 0 | BW96: 0 | BX96: 0 | CF96: 0 | CG96: 499794.3032
A97: 97 | E97: א) | F97: בישראל | J97: 5883147.452 | K97: 157.3266654 | L97: 48028.08082 | M97: 1434011.049 | N97: 50059.19335 | O97: 1275982.47 | P97: 298233.4049 | Q97: 867719.61 | R97: 6.577689762 | S97: 0 | T97: 0 | U97: 11568.84513 | V97: 0.5423102378 | W97: 130783.455 | X97: 166276.3444 | Y97: 447554.882 | Z97: 420293.4879 | AA97: 1514.73495 | AB97: 13923.24564 | AC97: 34907.32802 | AD97: 266790.5721 | AE97: 0 | AF97: 0 | AG97: 0 | AH97: 273.28 | AI97: 0 | AJ97: 0 | AK97: 0 | AL97: 0 | AM97: 55515.89 | AN97: 0 | AO97: 4773 | AP97: 0 | AQ97: 0 | AR97: 0 | AS97: 0 | AT97: 0 | AU97: 0 | AV97: 0 | AW97: 0 | AX97: 0 | AY97: 0 | AZ97: 0 | BA97: 0 | BB97: 0 | BC97: 0 | BD97: 0 | BE97: 0 | BF97: 0 | BG97: 0 | BH97: 0 | BI97: 0 | BJ97: 0 | BK97: 0 | BL97: 0 | BM97: 0 | BN97: 0 | BO97: 0 | BP97: 0 | BQ97: 0 | BR97: 0 | BS97: 0 | BT97: 0 | BU97: 0 | BV97: 0 | BW97: 0 | BX97: 0 | CF97: 0 | CG97: 354774.1324
A98: 98 | F98: (1) | G98: סחיר | J98: 5483654.049 | K98: 134.2784242 | L98: 40992.00217 | M98: 1223929.481 | N98: 42725.5582 | O98: 1192486.51 | P98: 288225.8407 | Q98: 867489.15 | R98: 6.577689762 | S98: 0 | T98: 0 | U98: 11180.63925 | V98: 0.5423102378 | W98: 125047.8548 | X98: 158487.5441 | Y98: 435058.0874 | Z98: 399299.7785 | AA98: 1448.305186 | AB98: 13271.04595 | AC98: 33932.63257 | AD98: 253464.3515 | AE98: 0 | AF98: 0 | AG98: 0 | AH98: 273.28 | AI98: 0 | AJ98: 0 | AK98: 0 | AL98: 0 | AM98: 55515.89 | AN98: 0 | AO98: 4773 | AP98: 0 | AQ98: 0 | AR98: 0 | AS98: 0 | AT98: 0 | AU98: 0 | AV98: 0 | AW98: 0 | AX98: 0 | AY98: 0 | AZ98: 0 | BA98: 0 | BB98: 0 | BC98: 0 | BD98: 0 | BE98: 0 | BF98: 0 | BG98: 0 | BH98: 0 | BI98: 0 | BJ98: 0 | BK98: 0 | BL98: 0 | BM98: 0 | BN98: 0 | BO98: 0 | BP98: 0 | BQ98: 0 | BR98: 0 | BS98: 0 | BT98: 0 | BU98: 0 | BV98: 0 | BW98: 0 | BX98: 0 | CF98: 0 | CG98: 335911.6994
A99: 99 | G99: (א) | H99: =$H$47 -> דרוג AA- ומעלה | J99: 4087753.928 | K99: 99.17084 | L99: 30274.49356 | M99: 903928.6505 | N99: 31554.80505 | O99: 896692.35 | P99: 201258.6369 | Q99: 659216.38 | R99: 1.542800829 | S99: 0 | T99: 0 | U99: 7807.073125 | V99: 0.1271991709 | W99: 92791.51795 | X99: 119252.3091 | Y99: 320420.3414 | Z99: 293859.649 | AA99: 1074.712052 | AB99: 9985.660911 | AC99: 24991.38857 | AD99: 186533.901 | AE99: 0 | AF99: 0 | AG99: 0 | AH99: 273.14 | AI99: 0 | AJ99: 0 | AK99: 0 | AL99: 0 | AM99: 44193.88 | AN99: 0 | AO99: 3934.51 | AP99: 0 | AQ99: 0 | AR99: 0 | AS99: 0 | AT99: 0 | AU99: 0 | AV99: 0 | AW99: 0 | AX99: 0 | AY99: 0 | AZ99: 0 | BA99: 0 | BB99: 0 | BC99: 0 | BD99: 0 | BE99: 0 | BF99: 0 | BG99: 0 | BH99: 0 | BI99: 0 | BJ99: 0 | BK99: 0 | BL99: 0 | BM99: 0 | BN99: 0 | BO99: 0 | BP99: 0 | BQ99: 0 | BR99: 0 | BS99: 0 | BT99: 0 | BU99: 0 | BV99: 0 | BW99: 0 | BX99: 0 | CF99: 0 | CG99: 259609.6884
A100: 100 | H100: a | I100: צמוד מדד | J100: 3632147.742 | K100: 89.60032434 | L100: 27352.84326 | M100: 816694.7086 | N100: 28509.59785 | O100: 807745.91 | P100: 165813.2862 | Q100: 583237.56 | R100: 0.7760195787 | S100: 0 | T100: 0 | U100: 6432.103836 | V100: 0.06398042131 | W100: 82974.63713 | X100: 105774.6949 | Y100: 277597.5707 | Z100: 255734.2731 | AA100: 961.0128651 | AB100: 8857.10511 | AC100: 21651.3993 | AD100: 162332.9769 | AH100: 0.94 | AM100: 39158.92 | AO100: 3667.44 | CG100: 237560.3222
A101: 101 | H101: b | I101: לא צמוד | J101: 421429.4476 | K101: 8.73410047 | L101: 2666.312683 | M101: 79610.13189 | N101: 2779.071324 | O101: 81406.16 | P101: 33850.96877 | Q101: 70534.32 | R101: 0.7575429221 | S101: 0 | T101: 0 | U101: 1313.121229 | V101: 0.06245707794 | W101: 9042.311877 | X101: 12490.21467 | Y101: 40231.40588 | Z101: 35738.10727 | AA101: 104.7281235 | AB101: 1045.875332 | AC101: 3137.874121 | AD101: 22685.55273 | AM101: 4669.41 | AO101: 232.83 | CG101: 19881.49759
A102: 102 | H102: c | I102: צמוד מט"ח | J102: 34176.73856 | K102: 0.8364151864 | L102: 255.3376192 | M102: 7623.810092 | N102: 266.1358737 | O102: 7540.28 | P102: 1594.381939 | Q102: 5444.5 | R102: 0.009238328318 | S102: 0 | T102: 0 | U102: 61.8480607 | V102: 0.0007616716823 | W102: 774.5689368 | X102: 987.3995306 | Y102: 2591.364848 | Z102: 2387.268564 | AA102: 8.971063193 | AB102: 82.68046943 | AC102: 202.1151515 | AD102: 1515.371436 | AH102: 272.2 | AM102: 365.55 | AO102: 34.24 | CG102: 2167.868556
A103: 103 | H103: d | I103: אחר | J103: 0 | K103: 0 | L103: 0 | M103: 0 | N103: 0 | P103: 0 | R103: 0 | S103: 0 | T103: 0 | U103: 0 | V103: 0 | W103: 0 | X103: 0 | Y103: 0 | Z103: 0 | AA103: 0 | AB103: 0 | AC103: 0 | AD103: 0 | CG103: 0
A104: 104 | G104: (ב) | H104: =$H$51 -> דרוג BBB- ועד A+ | J104: 1365490.431 | K104: 34.20119596 | L104: 10440.80989 | M104: 311739.2261 | N104: 10882.35283 | O104: 289276.32 | P104: 84963.90436 | Q104: 204688.29 | R104: 4.739262427 | S104: 0 | T104: 0 | U104: 3295.855644 | V104: 0.390737573 | W104: 31495.40993 | X104: 38450.63398 | Y104: 112319.4806 | Z104: 103202.2763 | AA104: 364.7800723 | AB104: 3219.686022 | AC104: 8760.429412 | AD104: 65509.92372 | AE104: 0 | AF104: 0 | AG104: 0 | AH104: 0.14 | AI104: 0 | AJ104: 0 | AK104: 0 | AL104: 0 | AM104: 11261.37 | AN104: 0 | AO104: 833.52 | AP104: 0 | AQ104: 0 | AR104: 0 | AS104: 0 | AT104: 0 | AU104: 0 | AV104: 0 | AW104: 0 | AX104: 0 | AY104: 0 | AZ104: 0 | BA104: 0 | BB104: 0 | BC104: 0 | BD104: 0 | BE104: 0 | BF104: 0 | BG104: 0 | BH104: 0 | BI104: 0 | BJ104: 0 | BK104: 0 | BL104: 0 | BM104: 0 | BN104: 0 | BO104: 0 | BP104: 0 | BQ104: 0 | BR104: 0 | BS104: 0 | BT104: 0 | BU104: 0 | BV104: 0 | BW104: 0 | BX104: 0 | CF104: 0 | CG104: 74746.69101
A105: 105 | H105: a | I105: צמוד מדד | J105: 673525.091 | K105: 17.78801671 | L105: 5430.257498 | M105: 162135.3408 | N105: 5659.903653 | O105: 148116.86 | P105: 35331.87267 | Q105: 98642.21 | R105: 2.291105423 | S105: 0 | T105: 0 | U105: 1370.567335 | V105: 0.1888945772 | W105: 15891.87024 | X105: 18885.6954 | Y105: 51482.90782 | Z105: 48184.73529 | AA105: 184.0597594 | AB105: 1581.404601 | AC105: 4015.442179 | AD105: 30586.32471 | AH105: 0.12 | AM105: 5289.83 | AO105: 490.17 | CG105: 40225.25101
A106: 106 | H106: b | I106: לא צמוד | J106: 618447.3249 | K106: 14.59692108 | L106: 4456.092067 | M106: 133048.9403 | N106: 4644.540664 | O106: 124785.92 | P106: 46270.88476 | Q106: 94223.47 | R106: 2.429680348 | S106: 0 | T106: 0 | U106: 1794.905235 | V106: 0.2003196524 | W106: 13921.59004 | X106: 17420.81777 | Y106: 55209.49062 | Z106: 49833.63793 | AA106: 161.2399595 | AB106: 1458.742228 | AC106: 4306.099378 | AD106: 31633.00207 | AH106: 0 | AM106: 5177.76 | AO106: 269.01 | CG106: 29813.95491
A107: 107 | H107: c | I107: צמוד מט"ח | J107: 73518.01508 | K107: 1.816258165 | L107: 554.4603247 | M107: 16554.94491 | N107: 577.9085095 | O107: 16373.54 | P107: 3361.146926 | Q107: 11822.61 | R107: 0.01847665664 | S107: 0 | T107: 0 | U107: 130.3830744 | V107: 0.001523343365 | W107: 1681.949647 | X107: 2144.120807 | Y107: 5627.082145 | Z107: 5183.903063 | AA107: 19.48035333 | AB107: 179.539193 | AC107: 438.8878552 | AD107: 3290.596937 | AH107: 0.02 | AM107: 793.78 | AO107: 74.34 | CG107: 4707.485085
A108: 108 | H108: d | I108: אחר | J108: 0 | K108: 0 | L108: 0 | M108: 0 | N108: 0 | P108: 0 | R108: 0 | S108: 0 | T108: 0 | U108: 0 | V108: 0 | W108: 0 | X108: 0 | Y108: 0 | Z108: 0 | AA108: 0 | AB108: 0 | AC108: 0 | AD108: 0 | CG108: 0
A109: 109 | G109: (ג) | H109: =$H$55 -> דרוג נמוך מ- BBB- או לא מדורג | J109: 30409.69 | K109: 0.9063882025 | L109: 276.6987131 | M109: 8261.604568 | N109: 288.4003305 | O109: 6517.84 | P109: 2003.299517 | Q109: 3584.48 | R109: 0.2956265062 | S109: 0 | T109: 0 | U109: 77.71048272 | V109: 0.02437349383 | W109: 760.9269385 | X109: 784.6009839 | Y109: 2318.265413 | Z109: 2237.853241 | AA109: 8.813061468 | AB109: 65.69901611 | AC109: 180.8145871 | AD109: 1420.526759 | AE109: 0 | AF109: 0 | AG109: 0 | AH109: 0 | AI109: 0 | AJ109: 0 | AK109: 0 | AL109: 0 | AM109: 60.64 | AN109: 0 | AO109: 4.97 | AP109: 0 | AQ109: 0 | AR109: 0 | AS109: 0 | AT109: 0 | AU109: 0 | AV109: 0 | AW109: 0 | AX109: 0 | AY109: 0 | AZ109: 0 | BA109: 0 | BB109: 0 | BC109: 0 | BD109: 0 | BE109: 0 | BF109: 0 | BG109: 0 | BH109: 0 | BI109: 0 | BJ109: 0 | BK109: 0 | BL109: 0 | BM109: 0 | BN109: 0 | BO109: 0 | BP109: 0 | BQ109: 0 | BR109: 0 | BS109: 0 | BT109: 0 | BU109: 0 | BV109: 0 | BW109: 0 | BX109: 0 | CF109: 0 | CG109: 1555.32
A110: 110 | H110: a | I110: צמוד מדד | J110: 30409.69 | K110: 0.9063882025 | L110: 276.6987131 | M110: 8261.604568 | N110: 288.4003305 | O110: 6517.84 | P110: 2003.299517 | Q110: 3584.48 | R110: 0.2956265062 | S110: 0 | T110: 0 | U110: 77.71048272 | V110: 0.02437349383 | W110: 760.9269385 | X110: 784.6009839 | Y110: 2318.265413 | Z110: 2237.853241 | AA110: 8.813061468 | AB110: 65.69901611 | AC110: 180.8145871 | AD110: 1420.526759 | AH110: 0 | AM110: 60.64 | AO110: 4.97 | CG110: 1555.32
A111: 111 | H111: b | I111: לא צמוד | J111: 0 | K111: 0 | L111: 0 | M111: 0 | N111: 0 | P111: 0 | R111: 0 | S111: 0 | T111: 0 | U111: 0 | V111: 0 | W111: 0 | X111: 0 | Y111: 0 | Z111: 0 | AA111: 0 | AB111: 0 | AC111: 0 | AD111: 0 | CG111: 0
A112: 112 | H112: c | I112: צמוד מט"ח | J112: 0 | K112: 0 | L112: 0 | M112: 0 | N112: 0 | P112: 0 | R112: 0 | S112: 0 | T112: 0 | U112: 0 | V112: 0 | W112: 0 | X112: 0 | Y112: 0 | Z112: 0 | AA112: 0 | AB112: 0 | AC112: 0 | AD112: 0 | CG112: 0
A113: 113 | H113: d | I113: אחר | J113: 0 | K113: 0 | L113: 0 | M113: 0 | N113: 0 | P113: 0 | R113: 0 | S113: 0 | T113: 0 | U113: 0 | V113: 0 | W113: 0 | X113: 0 | Y113: 0 | Z113: 0 | AA113: 0 | AB113: 0 | AC113: 0 | AD113: 0 | CG113: 0
A114: 114 | F114: (2) | G114: לא סחיר | J114: 399493.403 | K114: 23.0482412 | L114: 7036.078648 | M114: 210081.568 | N114: 7333.635146 | O114: 83495.96 | P114: 10007.56413 | Q114: 230.46 | R114: 0 | S114: 0 | T114: 0 | U114: 388.2058736 | V114: 0 | W114: 5735.600235 | X114: 7788.800312 | Y114: 12496.79455 | Z114: 20993.70939 | AA114: 66.42976463 | AB114: 652.1996883 | AC114: 974.6954489 | AD114: 13326.22061 | AE114: 0 | AF114: 0 | AG114: 0 | AH114: 0 | AI114: 0 | AJ114: 0 | AK114: 0 | AL114: 0 | AM114: 0 | AN114: 0 | AO114: 0 | AP114: 0 | AQ114: 0 | AR114: 0 | AS114: 0 | AT114: 0 | AU114: 0 | AV114: 0 | AW114: 0 | AX114: 0 | AY114: 0 | AZ114: 0 | BA114: 0 | BB114: 0 | BC114: 0 | BD114: 0 | BE114: 0 | BF114: 0 | BG114: 0 | BH114: 0 | BI114: 0 | BJ114: 0 | BK114: 0 | BL114: 0 | BM114: 0 | BN114: 0 | BO114: 0 | BP114: 0 | BQ114: 0 | BR114: 0 | BS114: 0 | BT114: 0 | BU114: 0 | BV114: 0 | BW114: 0 | BX114: 0 | CF114: 0 | CG114: 18862.433
A115: 115 | G115: (א) | H115: =$H$47 -> דרוג AA- ומעלה | J115: 371379.449 | K115: 21.79723674 | L115: 6654.176806 | M115: 198678.8333 | N115: 6935.582636 | O115: 77483.81 | P115: 9284.695115 | Q115: 230.46 | R115: 0 | S115: 0 | T115: 0 | U115: 360.1648845 | V115: 0 | W115: 5008.709094 | X115: 6837.332055 | Y115: 10841.59305 | Z115: 18367.34939 | AA115: 58.01090602 | AB115: 572.5279448 | AC115: 845.5969535 | AD115: 11659.08061 | AE115: 0 | AF115: 0 | AG115: 0 | AH115: 0 | AI115: 0 | AJ115: 0 | AK115: 0 | AL115: 0 | AM115: 0 | AN115: 0 | AO115: 0 | AP115: 0 | AQ115: 0 | AR115: 0 | AS115: 0 | AT115: 0 | AU115: 0 | AV115: 0 | AW115: 0 | AX115: 0 | AY115: 0 | AZ115: 0 | BA115: 0 | BB115: 0 | BC115: 0 | BD115: 0 | BE115: 0 | BF115: 0 | BG115: 0 | BH115: 0 | BI115: 0 | BJ115: 0 | BK115: 0 | BL115: 0 | BM115: 0 | BN115: 0 | BO115: 0 | BP115: 0 | BQ115: 0 | BR115: 0 | BS115: 0 | BT115: 0 | BU115: 0 | BV115: 0 | BW115: 0 | BX115: 0 | CF115: 0 | CG115: 17539.72902
A116: 116 | H116: a | I116: צמוד מדד | J116: 347327.0419 | K116: 21.22844275 | L116: 6480.537558 | M116: 193494.3538 | N116: 6754.600166 | O116: 72308.05 | P116: 8753.972506 | Q116: 0.02 | R116: 0 | S116: 0 | T116: 0 | U116: 339.5774937 | V116: 0 | W116: 3960.904771 | X116: 5653.685392 | Y116: 8476.991639 | Z116: 14995.8213 | AA116: 45.87522855 | AB116: 473.4146085 | AC116: 661.168361 | AD116: 9518.928699 | CG116: 15387.91192
A117: 117 | H117: b | I117: לא צמוד | J117: 18119.2458 | K117: 0.3571407378 | L117: 109.0265543 | M117: 3255.289006 | N117: 113.6372986 | O117: 3245.01 | P117: 366.3584977 | Q117: 0 | R117: 0 | S117: 0 | T117: 0 | U117: 14.2115023 | V117: 0 | W117: 856.3517279 | X117: 1073.629052 | Y117: 2004.62778 | Z117: 3025.076129 | AA117: 9.918272089 | AB117: 89.90094815 | AC117: 156.3522202 | AD117: 1920.233871 | CG117: 1879.265805
A118: 118 | H118: c | I118: צמוד מט"ח | J118: 5933.1613 | K118: 0.2116532544 | L118: 64.6126935 | M118: 1929.190482 | N118: 67.34517103 | O118: 1930.75 | P118: 164.3641115 | Q118: 230.44 | R118: 0 | S118: 0 | T118: 0 | U118: 6.375888545 | V118: 0 | W118: 191.4525946 | X118: 110.0176118 | Y118: 359.9736277 | Z118: 346.451965 | AA118: 2.217405376 | AB118: 9.212388205 | AC118: 28.07637232 | AD118: 219.918035 | CG118: 272.5512996
A119: 119 | H119: d | I119: אחר | J119: 0 | K119: 0 | L119: 0 | M119: 0 | N119: 0 | P119: 0 | R119: 0 | S119: 0 | T119: 0 | U119: 0 | V119: 0 | W119: 0 | X119: 0 | Y119: 0 | Z119: 0 | AA119: 0 | AB119: 0 | AC119: 0 | AD119: 0 | CG119: 0
A120: 120 | G120: (ב) | H120: =$H$51 -> דרוג BBB- ועד A+ | J120: 27913.47037 | K120: 1.239637143 | L120: 378.4316711 | M120: 11299.12311 | N120: 394.4355858 | O120: 5967.15 | P120: 717.3048516 | Q120: 0 | R120: 0 | S120: 0 | T120: 0 | U120: 27.82514836 | V120: 0 | W120: 724.3802229 | X120: 947.8788201 | Y120: 1649.821149 | Z120: 2616.835734 | AA120: 8.389777135 | AB120: 79.37117993 | AC120: 128.6788511 | AD120: 1661.094266 | AE120: 0 | AF120: 0 | AG120: 0 | AH120: 0 | AI120: 0 | AJ120: 0 | AK120: 0 | AL120: 0 | AM120: 0 | AN120: 0 | AO120: 0 | AP120: 0 | AQ120: 0 | AR120: 0 | AS120: 0 | AT120: 0 | AU120: 0 | AV120: 0 | AW120: 0 | AX120: 0 | AY120: 0 | AZ120: 0 | BA120: 0 | BB120: 0 | BC120: 0 | BD120: 0 | BE120: 0 | BF120: 0 | BG120: 0 | BH120: 0 | BI120: 0 | BJ120: 0 | BK120: 0 | BL120: 0 | BM120: 0 | BN120: 0 | BO120: 0 | BP120: 0 | BQ120: 0 | BR120: 0 | BS120: 0 | BT120: 0 | BU120: 0 | BV120: 0 | BW120: 0 | BX120: 0 | CF120: 0 | CG120: 1311.510366
A121: 121 | H121: a | I121: צמוד מדד | J121: 17423.02358 | K121: 1.032864103 | L121: 315.3087908 | M121: 9414.415113 | N121: 328.6432323 | O121: 4088.4 | P121: 505.1929369 | Q121: 0 | R121: 0 | S121: 0 | T121: 0 | U121: 19.59706307 | V121: 0 | W121: 228.5825551 | X121: 326.2788521 | Y121: 489.2134829 | Z121: 865.417275 | AA121: 2.647444856 | AB121: 27.32114794 | AC121: 38.15651712 | AD121: 549.342725 | CG121: 223.473582
A122: 122 | H122: b | I122: לא צמוד | J122: 10490.44678 | K122: 0.2067730398 | L122: 63.1228803 | M122: 1884.707993 | N122: 65.79235348 | O122: 1878.75 | P122: 212.1119147 | Q122: 0 | R122: 0 | S122: 0 | T122: 0 | U122: 8.228085287 | V122: 0 | W122: 495.7976677 | X122: 621.599968 | Y122: 1160.607666 | Z122: 1751.418459 | AA122: 5.742332279 | AB122: 52.05003199 | AC122: 90.52233398 | AD122: 1111.751541 | CG122: 1088.036784
A123: 123 | H123: c | I123: צמוד מט"ח | J123: 0 | K123: 0 | L123: 0 | M123: 0 | N123: 0 | P123: 0 | R123: 0 | S123: 0 | T123: 0 | U123: 0 | V123: 0 | W123: 0 | X123: 0 | Y123: 0 | Z123: 0 | AA123: 0 | AB123: 0 | AC123: 0 | AD123: 0 | CG123: 0
A124: 124 | H124: d | I124: אחר | J124: 0 | K124: 0 | L124: 0 | M124: 0 | N124: 0 | P124: 0 | R124: 0 | S124: 0 | T124: 0 | U124: 0 | V124: 0 | W124: 0 | X124: 0 | Y124: 0 | Z124: 0 | AA124: 0 | AB124: 0 | AC124: 0 | AD124: 0 | CG124: 0
A125: 125 | G125: (ג) | H125: =$H$68 -> בדרוג נמוך מ- BBB- או לא מדורג עם בטוחה מספקת | J125: 0 | K125: 0 | L125: 0 | M125: 0 | N125: 0 | O125: 0 | P125: 0 | Q125: 0 | R125: 0 | S125: 0 | T125: 0 | U125: 0 | V125: 0 | W125: 0 | X125: 0 | Y125: 0 | Z125: 0 | AA125: 0 | AB125: 0 | AC125: 0 | AD125: 0 | AE125: 0 | AF125: 0 | AG125: 0 | AH125: 0 | AI125: 0 | AJ125: 0 | AK125: 0 | AL125: 0 | AM125: 0 | AN125: 0 | AO125: 0 | AP125: 0 | AQ125: 0 | AR125: 0 | AS125: 0 | AT125: 0 | AU125: 0 | AV125: 0 | AW125: 0 | AX125: 0 | AY125: 0 | AZ125: 0 | BA125: 0 | BB125: 0 | BC125: 0 | BD125: 0 | BE125: 0 | BF125: 0 | BG125: 0 | BH125: 0 | BI125: 0 | BJ125: 0 | BK125: 0 | BL125: 0 | BM125: 0 | BN125: 0 | BO125: 0 | BP125: 0 | BQ125: 0 | BR125: 0 | BS125: 0 | BT125: 0 | BU125: 0 | BV125: 0 | BW125: 0 | BX125: 0 | CF125: 0 | CG125: 0
A126: 126 | H126: a | I126: צמוד מדד | J126: 0 | K126: 0 | L126: 0 | M126: 0 | N126: 0 | P126: 0 | R126: 0 | S126: 0 | T126: 0 | U126: 0 | V126: 0 | W126: 0 | X126: 0 | Y126: 0 | Z126: 0 | AA126: 0 | AB126: 0 | AC126: 0 | AD126: 0 | CG126: 0
A127: 127 | H127: b | I127: לא צמוד | J127: 0 | K127: 0 | L127: 0 | M127: 0 | N127: 0 | P127: 0 | R127: 0 | S127: 0 | T127: 0 | U127: 0 | V127: 0 | W127: 0 | X127: 0 | Y127: 0 | Z127: 0 | AA127: 0 | AB127: 0 | AC127: 0 | AD127: 0 | CG127: 0
A128: 128 | H128: c | I128: צמוד מט"ח | J128: 0 | K128: 0 | L128: 0 | M128: 0 | N128: 0 | P128: 0 | R128: 0 | S128: 0 | T128: 0 | U128: 0 | V128: 0 | W128: 0 | X128: 0 | Y128: 0 | Z128: 0 | AA128: 0 | AB128: 0 | AC128: 0 | AD128: 0 | CG128: 0
A129: 129 | H129: d | I129: אחר | J129: 0 | K129: 0 | L129: 0 | M129: 0 | N129: 0 | P129: 0 | R129: 0 | S129: 0 | T129: 0 | U129: 0 | V129: 0 | W129: 0 | X129: 0 | Y129: 0 | Z129: 0 | AA129: 0 | AB129: 0 | AC129: 0 | AD129: 0 | CG129: 0
A130: 130 | G130: (ד) | H130: =$H$55 -> דרוג נמוך מ- BBB- או לא מדורג | J130: 200.4836118 | K130: 0.01136731662 | L130: 3.470170808 | M130: 103.6115372 | N130: 3.616924693 | O130: 45 | P130: 5.564159331 | Q130: 0 | R130: 0 | S130: 0 | T130: 0 | U130: 0.2158406688 | V130: 0 | W130: 2.510918523 | X130: 3.589436466 | Y130: 5.380355729 | Z130: 9.52426346 | AA130: 0.02908147703 | AB130: 0.3005635336 | AC130: 0.4196442712 | AD130: 6.04573654 | AE130: 0 | AF130: 0 | AG130: 0 | AH130: 0 | AI130: 0 | AJ130: 0 | AK130: 0 | AL130: 0 | AM130: 0 | AN130: 0 | AO130: 0 | AP130: 0 | AQ130: 0 | AR130: 0 | AS130: 0 | AT130: 0 | AU130: 0 | AV130: 0 | AW130: 0 | AX130: 0 | AY130: 0 | AZ130: 0 | BA130: 0 | BB130: 0 | BC130: 0 | BD130: 0 | BE130: 0 | BF130: 0 | BG130: 0 | BH130: 0 | BI130: 0 | BJ130: 0 | BK130: 0 | BL130: 0 | BM130: 0 | BN130: 0 | BO130: 0 | BP130: 0 | BQ130: 0 | BR130: 0 | BS130: 0 | BT130: 0 | BU130: 0 | BV130: 0 | BW130: 0 | BX130: 0 | CF130: 0 | CG130: 11.19361175
A131: 131 | H131: a | I131: צמוד מדד | J131: 200.4836118 | K131: 0.01136731662 | L131: 3.470170808 | M131: 103.6115372 | N131: 3.616924693 | O131: 45 | P131: 5.564159331 | Q131: 0 | R131: 0 | S131: 0 | T131: 0 | U131: 0.2158406688 | V131: 0 | W131: 2.510918523 | X131: 3.589436466 | Y131: 5.380355729 | Z131: 9.52426346 | AA131: 0.02908147703 | AB131: 0.3005635336 | AC131: 0.4196442712 | AD131: 6.04573654 | CG131: 11.19361175
A132: 132 | H132: b | I132: לא צמוד | J132: 0 | K132: 0 | L132: 0 | M132: 0 | N132: 0 | P132: 0 | R132: 0 | S132: 0 | T132: 0 | U132: 0 | V132: 0 | W132: 0 | X132: 0 | Y132: 0 | Z132: 0 | AA132: 0 | AB132: 0 | AC132: 0 | AD132: 0 | CG132: 0
A133: 133 | H133: c | I133: צמוד מט"ח | J133: 0 | K133: 0 | L133: 0 | M133: 0 | N133: 0 | P133: 0 | R133: 0 | S133: 0 | T133: 0 | U133: 0 | V133: 0 | W133: 0 | X133: 0 | Y133: 0 | Z133: 0 | AA133: 0 | AB133: 0 | AC133: 0 | AD133: 0 | CG133: 0
A134: 134 | H134: d | I134: אחר | J134: 0 | K134: 0 | L134: 0 | M134: 0 | N134: 0 | P134: 0 | R134: 0 | S134: 0 | T134: 0 | U134: 0 | V134: 0 | W134: 0 | X134: 0 | Y134: 0 | Z134: 0 | AA134: 0 | AB134: 0 | AC134: 0 | AD134: 0 | CG134: 0
A135: 135 | E135: ב) | F135: בחו"ל | J135: 2755559.901 | K135: 60.44519225 | L135: 18452.47639 | M135: 550949.6649 | N135: 19232.83354 | O135: 490185.33 | P135: 81200.89613 | Q135: 179327.47 | R135: 1.191744353 | S135: 0 | T135: 0 | U135: 3149.88387 | V135: 0.09825564701 | W135: 42630.40434 | X135: 61260.7184 | Y135: 110748.2126 | Z135: 98041.71592 | AA135: 493.7456605 | AB135: 5129.701603 | AC135: 8637.877368 | AD135: 62234.14408 | AE135: 0 | AF135: 0 | AG135: 0 | AH135: 877427.14 | AI135: 0 | AJ135: 0 | AK135: 0 | AL135: 0 | AM135: 243.2 | AN135: 0 | AO135: 1132.58 | AP135: 0 | AQ135: 0 | AR135: 0 | AS135: 0 | AT135: 0 | AU135: 0 | AV135: 0 | AW135: 0 | AX135: 0 | AY135: 0 | AZ135: 0 | BA135: 0 | BB135: 0 | BC135: 0 | BD135: 0 | BE135: 0 | BF135: 0 | BG135: 0 | BH135: 0 | BI135: 0 | BJ135: 0 | BK135: 0 | BL135: 0 | BM135: 0 | BN135: 0 | BO135: 0 | BP135: 0 | BQ135: 0 | BR135: 0 | BS135: 0 | BT135: 0 | BU135: 0 | BV135: 0 | BW135: 0 | BX135: 0 | CF135: 0 | CG135: 145020.1708
A136: 136 | F136: (1) | G136: סחיר - חברות ישראליות | J136: 159209.47 | K136: 5.251230022 | L136: 1603.075355 | M136: 47864.24384 | N136: 1670.869578 | O136: 36821.48 | P136: 10524.5785 | Q136: 16931.66 | R136: 1.191744353 | S136: 0 | T136: 0 | U136: 408.2615047 | V136: 0.09825564701 | W136: 3171.122041 | X136: 3196.582334 | Y136: 10373.66907 | Z136: 9091.628227 | AA136: 36.72795909 | AB136: 267.6676662 | AC136: 809.1009253 | AD136: 5771.111773 | AE136: 0 | AF136: 0 | AG136: 0 | AH136: 295.69 | AI136: 0 | AJ136: 0 | AK136: 0 | AL136: 0 | AM136: 243.2 | AN136: 0 | AO136: 19.94 | AP136: 0 | AQ136: 0 | AR136: 0 | AS136: 0 | AT136: 0 | AU136: 0 | AV136: 0 | AW136: 0 | AX136: 0 | AY136: 0 | AZ136: 0 | BA136: 0 | BB136: 0 | BC136: 0 | BD136: 0 | BE136: 0 | BF136: 0 | BG136: 0 | BH136: 0 | BI136: 0 | BJ136: 0 | BK136: 0 | BL136: 0 | BM136: 0 | BN136: 0 | BO136: 0 | BP136: 0 | BQ136: 0 | BR136: 0 | BS136: 0 | BT136: 0 | BU136: 0 | BV136: 0 | BW136: 0 | BX136: 0 | CF136: 0 | CG136: 10102.32
A137: 137 | G137: (א) | H137: =$H$78 -> דרוג A- ומעלה | J137: 0 | K137: 0 | L137: 0 | M137: 0 | N137: 0 | P137: 0 | R137: 0 | S137: 0 | T137: 0 | U137: 0 | V137: 0 | W137: 0 | X137: 0 | Y137: 0 | Z137: 0 | AA137: 0 | AB137: 0 | AC137: 0 | AD137: 0 | CG137: 0
A138: 138 | G138: (ב) | H138: =$H$79 -> דרוג BBB- ועד BBB+ | J138: 86721.71 | K138: 3.090667736 | L138: 943.507189 | M138: 28171.01394 | N138: 983.4082062 | O138: 21284.87 | P138: 5749.307214 | Q138: 8387.31 | R138: 0.4803930725 | S138: 0 | T138: 0 | U138: 223.0227857 | V138: 0.03960692748 | W138: 1357.289859 | X138: 1326.319843 | Y138: 4847.607747 | Z138: 3757.245472 | AA138: 15.72014125 | AB138: 111.0601573 | AC138: 378.0922531 | AD138: 2384.994528 | AH138: 295.68 | AM138: 98.66 | AO138: 8.09 | CG138: 6394.9
A139: =A138+1 -> 139 | G139: (ג) | H139: =$H$80 -> דרוג נמוך מ- BBB- או לא מדורג | J139: 72487.76 | K139: 2.160562286 | L139: 659.5681656 | M139: 19693.2299 | N139: 687.461372 | O139: 15536.61 | P139: 4775.271281 | Q139: 8544.35 | R139: 0.7113512805 | S139: 0 | T139: 0 | U139: 185.238719 | V139: 0.05864871953 | W139: 1813.832182 | X139: 1870.262491 | Y139: 5526.061328 | Z139: 5334.382755 | AA139: 21.00781784 | AB139: 156.6075089 | AC139: 431.0086722 | AD139: 3386.117245 | AH139: 0.01 | AM139: 144.54 | AO139: 11.85 | CG139: 3707.42
A140: 140 | F140: (2) | G140: לא סחיר - חברות ישראליות | J140: 0 | K140: 0 | L140: 0 | M140: 0 | N140: 0 | O140: 0 | P140: 0 | Q140: 0 | R140: 0 | S140: 0 | T140: 0 | U140: 0 | V140: 0 | W140: 0 | X140: 0 | Y140: 0 | Z140: 0 | AA140: 0 | AB140: 0 | AC140: 0 | AD140: 0 | AE140: 0 | AF140: 0 | AG140: 0 | AH140: 0 | AI140: 0 | AJ140: 0 | AK140: 0 | AL140: 0 | AM140: 0 | AN140: 0 | AO140: 0 | AP140: 0 | AQ140: 0 | AR140: 0 | AS140: 0 | AT140: 0 | AU140: 0 | AV140: 0 | AW140: 0 | AX140: 0 | AY140: 0 | AZ140: 0 | BA140: 0 | BB140: 0 | BC140: 0 | BD140: 0 | BE140: 0 | BF140: 0 | BG140: 0 | BH140: 0 | BI140: 0 | BJ140: 0 | BK140: 0 | BL140: 0 | BM140: 0 | BN140: 0 | BO140: 0 | BP140: 0 | BQ140: 0 | BR140: 0 | BS140: 0 | BT140: 0 | BU140: 0 | BV140: 0 | BW140: 0 | BX140: 0 | CF140: 0 | CG140: 0
A141: 141 | G141: (א) | H141: =$H$78 -> דרוג A- ומעלה | J141: 0 | K141: 0 | L141: 0 | M141: 0 | N141: 0 | P141: 0 | R141: 0 | S141: 0 | T141: 0 | U141: 0 | V141: 0 | W141: 0 | X141: 0 | Y141: 0 | Z141: 0 | AA141: 0 | AB141: 0 | AC141: 0 | AD141: 0 | CG141: 0
A142: 142 | G142: (ב) | H142: =$H$79 -> דרוג BBB- ועד BBB+ | J142: 0 | K142: 0 | L142: 0 | M142: 0 | N142: 0 | P142: 0 | R142: 0 | S142: 0 | T142: 0 | U142: 0 | V142: 0 | W142: 0 | X142: 0 | Y142: 0 | Z142: 0 | AA142: 0 | AB142: 0 | AC142: 0 | AD142: 0 | CG142: 0
A143: 143 | G143: (ג) | H143: =$H$68 -> בדרוג נמוך מ- BBB- או לא מדורג עם בטוחה מספקת | J143: 0 | K143: 0 | L143: 0 | M143: 0 | N143: 0 | P143: 0 | R143: 0 | S143: 0 | T143: 0 | U143: 0 | V143: 0 | W143: 0 | X143: 0 | Y143: 0 | Z143: 0 | AA143: 0 | AB143: 0 | AC143: 0 | AD143: 0 | CG143: 0
A144: 144 | G144: (ד) | H144: =H139 -> דרוג נמוך מ- BBB- או לא מדורג | J144: 0 | K144: 0 | L144: 0 | M144: 0 | N144: 0 | P144: 0 | R144: 0 | S144: 0 | T144: 0 | U144: 0 | V144: 0 | W144: 0 | X144: 0 | Y144: 0 | Z144: 0 | AA144: 0 | AB144: 0 | AC144: 0 | AD144: 0 | CG144: 0
A145: 145 | F145: (3) | G145: סחיר - חברות זרות | J145: 2473979.828 | K145: 50.8286539 | L145: 15516.77646 | M145: 463296.2323 | N145: 16172.98255 | O145: 413542.46 | P145: 67286.35838 | Q145: 157642.94 | R145: 0 | S145: 0 | T145: 0 | U145: 2610.121624 | V145: 0 | W145: 35510.5367 | X145: 55795.10471 | Y145: 92950.1072 | Z145: 81804.5595 | AA145: 411.2833004 | AB145: 4672.035287 | AC145: 7249.702801 | AD145: 51927.2505 | AE145: 0 | AF145: 0 | AG145: 0 | AH145: 877131.45 | AI145: 0 | AJ145: 0 | AK145: 0 | AL145: 0 | AM145: 0 | AN145: 0 | AO145: 1112.64 | AP145: 0 | AQ145: 0 | AR145: 0 | AS145: 0 | AT145: 0 | AU145: 0 | AV145: 0 | AW145: 0 | AX145: 0 | AY145: 0 | AZ145: 0 | BA145: 0 | BB145: 0 | BC145: 0 | BD145: 0 | BE145: 0 | BF145: 0 | BG145: 0 | BH145: 0 | BI145: 0 | BJ145: 0 | BK145: 0 | BL145: 0 | BM145: 0 | BN145: 0 | BO145: 0 | BP145: 0 | BQ145: 0 | BR145: 0 | BS145: 0 | BT145: 0 | BU145: 0 | BV145: 0 | BW145: 0 | BX145: 0 | CF145: 0 | CG145: 129296.4584
A146: 146 | G146: (א) | H146: =$H$78 -> דרוג A- ומעלה | J146: 612069.6535 | K146: 12.57515382 | L146: 3838.894715 | M146: 114620.8082 | N146: 4001.241972 | O146: 102311.58 | P146: 16646.83841 | Q146: 39001.31 | R146: 0 | S146: 0 | T146: 0 | U146: 645.7515901 | V146: 0 | W146: 8785.407347 | X146: 13803.86537 | Y146: 22996.12276 | Z146: 20238.68059 | AA146: 101.7526533 | AB146: 1155.874632 | AC146: 1793.597239 | AD146: 12846.94941 | AH146: 217004.82 | AO146: 275.27 | CG146: 31988.31349
A147: 147 | G147: (ב) | H147: =$H$79 -> דרוג BBB- ועד BBB+ | J147: 1418336.604 | K147: 29.14014851 | L147: 8895.79274 | M147: 265608.4704 | N147: 9271.996741 | O147: 237084.56 | P147: 38575.37324 | Q147: 90376.95 | R147: 0 | S147: 0 | T147: 0 | U147: 1496.386761 | V147: 0 | W147: 20358.25059 | X147: 31987.42455 | Y147: 53288.44389 | Z147: 46898.68445 | AA147: 235.7894099 | AB147: 2678.485452 | AC147: 4156.266114 | AD147: 29769.97555 | AH147: 502860.87 | AO147: 637.88 | CG147: 74125.86426
A148: 148 | G148: (ג) | H148: =$H$80 -> דרוג נמוך מ- BBB- או לא מדורג | J148: 443573.5707 | K148: 9.113351568 | L148: 2782.089003 | M148: 83066.95381 | N148: 2899.743837 | O148: 74146.32 | P148: 12064.14673 | Q148: 28264.68 | R148: 0 | S148: 0 | T148: 0 | U148: 467.9832734 | V148: 0 | W148: 6366.878763 | X148: 10003.8148 | Y148: 16665.54055 | Z148: 14667.19445 | AA148: 73.74123724 | AB148: 837.6752042 | AC148: 1299.839448 | AD148: 9310.32555 | AH148: 157265.76 | AO148: 199.49 | CG148: 23182.28067
A149: 149 | F149: (4) | G149: לא סחיר - חברות זרות | J149: 122370.6024 | K149: 4.365308328 | L149: 1332.624579 | M149: 39789.1887 | N149: 1388.981411 | O149: 39821.39 | P149: 3389.959259 | Q149: 4752.87 | R149: 0 | S149: 0 | T149: 0 | U149: 131.5007407 | V149: 0 | W149: 3948.745599 | X149: 2269.031351 | Y149: 7424.436358 | Z149: 7145.528195 | AA149: 45.73440093 | AB149: 189.9986494 | AC149: 579.0736416 | AD149: 4535.781805 | AE149: 0 | AF149: 0 | AG149: 0 | AH149: 0 | AI149: 0 | AJ149: 0 | AK149: 0 | AL149: 0 | AM149: 0 | AN149: 0 | AO149: 0 | AP149: 0 | AQ149: 0 | AR149: 0 | AS149: 0 | AT149: 0 | AU149: 0 | AV149: 0 | AW149: 0 | AX149: 0 | AY149: 0 | AZ149: 0 | BA149: 0 | BB149: 0 | BC149: 0 | BD149: 0 | BE149: 0 | BF149: 0 | BG149: 0 | BH149: 0 | BI149: 0 | BJ149: 0 | BK149: 0 | BL149: 0 | BM149: 0 | BN149: 0 | BO149: 0 | BP149: 0 | BQ149: 0 | BR149: 0 | BS149: 0 | BT149: 0 | BU149: 0 | BV149: 0 | BW149: 0 | BX149: 0 | CF149: 0 | CG149: 5621.392414
A150: 150 | G150: (א) | H150: =$H$78 -> דרוג A- ומעלה | J150: 0 | K150: 0 | L150: 0 | M150: 0 | N150: 0 | P150: 0 | R150: 0 | S150: 0 | T150: 0 | U150: 0 | V150: 0 | W150: 0 | X150: 0 | Y150: 0 | Z150: 0 | AA150: 0 | AB150: 0 | AC150: 0 | AD150: 0 | CG150: 0
A151: 151 | G151: (ב) | H151: =$H$79 -> דרוג BBB- ועד BBB+ | J151: 0 | K151: 0 | L151: 0 | M151: 0 | N151: 0 | P151: 0 | R151: 0 | S151: 0 | T151: 0 | U151: 0 | V151: 0 | W151: 0 | X151: 0 | Y151: 0 | Z151: 0 | AA151: 0 | AB151: 0 | AC151: 0 | AD151: 0 | CG151: 0
A152: 152 | G152: (ג) | H152: =$H$68 -> בדרוג נמוך מ- BBB- או לא מדורג עם בטוחה מספקת | J152: 0 | K152: 0 | L152: 0 | M152: 0 | N152: 0 | P152: 0 | R152: 0 | S152: 0 | T152: 0 | U152: 0 | V152: 0 | W152: 0 | X152: 0 | Y152: 0 | Z152: 0 | AA152: 0 | AB152: 0 | AC152: 0 | AD152: 0 | CG152: 0
A153: 153 | G153: (ד) | H153: =H148 -> דרוג נמוך מ- BBB- או לא מדורג | J153: 122370.6024 | K153: 4.365308328 | L153: 1332.624579 | M153: 39789.1887 | N153: 1388.981411 | O153: 39821.39 | P153: 3389.959259 | Q153: 4752.87 | R153: 0 | S153: 0 | T153: 0 | U153: 131.5007407 | V153: 0 | W153: 3948.745599 | X153: 2269.031351 | Y153: 7424.436358 | Z153: 7145.528195 | AA153: 45.73440093 | AB153: 189.9986494 | AC153: 579.0736416 | AD153: 4535.781805 | CG153: 5621.392414
A154: 154 | W154: 0 | X154: 0 | Y154: 0 | Z154: 0 | AA154: 0 | AB154: 0 | AC154: 0 | AD154: 0 | CG154: 0
A155: 155 | D155: 4) | E155: מניות (למעט חברות מוחזקות) | J155: 12331572.9 | K155: 473.6596349 | L155: 144596.9962 | M155: 4317342.826 | N155: 150712.0182 | O155: 3643744.28 | P155: 36455.28414 | Q155: 210689.56 | R155: 1101154.442 | S155: 0 | T155: 0 | U155: 1414.145865 | V155: 90786.78818 | W155: 552575.8919 | X155: 312490.627 | Y155: 353867.8794 | Z155: 588507.4935 | AA155: 6399.938094 | AB155: 26166.58296 | AC155: 27600.15059 | AD155: 373568.1265 | AE155: 0 | AF155: 0 | AG155: 0 | AH155: 91690.3 | AI155: 5415.36 | AJ155: 0 | AK155: 0 | AL155: 0 | AM155: 0 | AN155: 15276.73 | AO155: 1344.02 | AP155: 0 | AQ155: 0 | AR155: 0 | AS155: 0 | AT155: 0 | AU155: 0 | AV155: 0 | AW155: 0 | AX155: 0 | AY155: 0 | AZ155: 0 | BA155: 0 | BB155: 0 | BC155: 0 | BD155: 0 | BE155: 0 | BF155: 0 | BG155: 0 | BH155: 0 | BI155: 0 | BJ155: 0 | BK155: 0 | BL155: 0 | BM155: 0 | BN155: 0 | BO155: 0 | BP155: 0 | BQ155: 0 | BR155: 0 | BS155: 0 | BT155: 0 | BU155: 0 | BV155: 0 | BW155: 0 | BX155: 0 | CF155: 0 | CG155: 279299.7996
A156: 156 | E156: א) | F156: בישראל | J156: 7924136.829 | K156: 316.0781788 | L156: 96491.1338 | M156: 2881009.394 | N156: 100571.7539 | O156: 2300119.15 | P156: 2812.798061 | Q156: 58229.31 | R156: 799969.7324 | S156: 0 | T156: 0 | U156: 109.1119392 | V156: 65955.03763 | W156: 362781.7095 | X156: 210273.7742 | Y156: 206140.6674 | Z156: 386368.9423 | AA156: 4201.740461 | AB156: 17607.39581 | AC156: 16078.07262 | AD156: 245256.2177 | AE156: 0 | AF156: 0 | AG156: 0 | AH156: 0 | AI156: 0 | AJ156: 0 | AK156: 0 | AL156: 0 | AM156: 0 | AN156: 12583.11 | AO156: 969.76 | AP156: 0 | AQ156: 0 | AR156: 0 | AS156: 0 | AT156: 0 | AU156: 0 | AV156: 0 | AW156: 0 | AX156: 0 | AY156: 0 | AZ156: 0 | BA156: 0 | BB156: 0 | BC156: 0 | BD156: 0 | BE156: 0 | BF156: 0 | BG156: 0 | BH156: 0 | BI156: 0 | BJ156: 0 | BK156: 0 | BL156: 0 | BM156: 0 | BN156: 0 | BO156: 0 | BP156: 0 | BQ156: 0 | BR156: 0 | BS156: 0 | BT156: 0 | BU156: 0 | BV156: 0 | BW156: 0 | BX156: 0 | CF156: 0 | CG156: 156291.9387
A157: 157 | F157: (1) | G157: סחיר | J157: 7045355.469 | K157: 273.5021064 | L157: 83493.67376 | M157: 2492934.314 | N157: 87024.62991 | O157: 2104907.87 | P157: 250.5893279 | Q157: 8141.47 | R157: 790371.2478 | S157: 0 | T157: 0 | U157: 9.720672057 | V157: 65163.67217 | W157: 332538.4176 | X157: 192607.057 | Y157: 169272.7259 | Z157: 355699.7129 | AA157: 3851.462428 | AB157: 16128.06305 | AC157: 13202.53405 | AD157: 225788.2471 | AE157: 0 | AF157: 0 | AG157: 0 | AH157: 0 | AI157: 0 | AJ157: 0 | AK157: 0 | AL157: 0 | AM157: 0 | AN157: 12583.11 | AO157: 969.76 | AP157: 0 | AQ157: 0 | AR157: 0 | AS157: 0 | AT157: 0 | AU157: 0 | AV157: 0 | AW157: 0 | AX157: 0 | AY157: 0 | AZ157: 0 | BA157: 0 | BB157: 0 | BC157: 0 | BD157: 0 | BE157: 0 | BF157: 0 | BG157: 0 | BH157: 0 | BI157: 0 | BJ157: 0 | BK157: 0 | BL157: 0 | BM157: 0 | BN157: 0 | BO157: 0 | BP157: 0 | BQ157: 0 | BR157: 0 | BS157: 0 | BT157: 0 | BU157: 0 | BV157: 0 | BW157: 0 | BX157: 0 | CF157: 0 | CG157: 90143.68873
A158: 158 | G158: (א) | H158: ='[1]טופס 106 חודשי'!H158 -> ת"א 35 | J158: 4620870.152 | K158: 178.4391689 | L158: 54473.22489 | M158: 1626448.633 | N158: 56776.90324 | O158: 1387996.09 | P158: 165.4422877 | Q158: 3395.2 | R158: 522584.3979 | S158: 0 | T158: 0 | U158: 6.417712342 | V158: 43085.47215 | W158: 219584.56 | X158: 127228.5629 | Y158: 111376.8886 | Z158: 235099.8554 | AA158: 2543.230009 | AB158: 10653.55712 | AC158: 8686.911354 | AD158: 149234.8246 | AE158: 0 | AF158: 0 | AG158: 0 | AH158: 0 | AI158: 0 | AJ158: 0 | AK158: 0 | AL158: 0 | AM158: 0 | AN158: 8319.82 | AO158: 641.18 | AP158: 0 | AQ158: 0 | AR158: 0 | AS158: 0 | AT158: 0 | AU158: 0 | AV158: 0 | AW158: 0 | AX158: 0 | AY158: 0 | AZ158: 0 | BA158: 0 | BB158: 0 | BC158: 0 | BD158: 0 | BE158: 0 | BF158: 0 | BG158: 0 | BH158: 0 | BI158: 0 | BJ158: 0 | BK158: 0 | BL158: 0 | BM158: 0 | BN158: 0 | BO158: 0 | BP158: 0 | BQ158: 0 | BR158: 0 | BS158: 0 | BT158: 0 | BU158: 0 | BV158: 0 | BW158: 0 | BX158: 0 | CF158: 0 | CG158: 52390.54201
A159: 159 | H159: a | I159: מניות | J159: 4620870.152 | K159: 178.4391689 | L159: 54473.22489 | M159: 1626448.633 | N159: 56776.90324 | O159: 1387996.09 | P159: 165.4422877 | Q159: 3395.2 | R159: 522584.3979 | S159: 0 | T159: 0 | U159: 6.417712342 | V159: 43085.47215 | W159: 219584.56 | X159: 127228.5629 | Y159: 111376.8886 | Z159: 235099.8554 | AA159: 2543.230009 | AB159: 10653.55712 | AC159: 8686.911354 | AD159: 149234.8246 | AN159: 8319.82 | AO159: 641.18 | CG159: 52390.54201
A160: 160 | H160: b | I160: אופציה 001 Call ח (Long) | J160: 0 | K160: 0 | L160: 0 | M160: 0 | N160: 0 | P160: 0 | R160: 0 | S160: 0 | T160: 0 | U160: 0 | V160: 0 | W160: 0 | X160: 0 | Y160: 0 | Z160: 0 | AA160: 0 | AB160: 0 | AC160: 0 | AD160: 0 | CG160: 0
A161: 161 | H161: c | I161: אופציה 001 Call ח (Short) | J161: 0 | K161: 0 | L161: 0 | M161: 0 | N161: 0 | P161: 0 | R161: 0 | S161: 0 | T161: 0 | U161: 0 | V161: 0 | W161: 0 | X161: 0 | Y161: 0 | Z161: 0 | AA161: 0 | AB161: 0 | AC161: 0 | AD161: 0 | CG161: 0
A162: 162 | G162: (ב) | H162: ='[1]טופס 106 חודשי'!H162 -> ת"א 90 | J162: 1804640.493 | K162: 69.43015916 | L162: 21195.37262 | M162: 632846.4101 | N162: 22091.72713 | O162: 540065.22 | P162: 64.37289524 | Q162: 1321.08 | R162: 203336.0682 | S162: 0 | T162: 0 | U162: 2.497104761 | V162: 16764.43181 | W162: 85439.70668 | X162: 49504.26205 | Y162: 43336.40917 | Z162: 91476.6662 | AA162: 989.5633189 | AB162: 4145.267947 | AC162: 3380.050829 | AD162: 58066.8338 | AN162: 3237.21 | AO162: 249.5 | CG162: 27058.41266
A163: 163 | G163: (ג) | H163: מניות היתר | J163: 426890.8421 | K163: 18.18169694 | L163: 5550.438688 | M163: 165723.6823 | N163: 5785.167318 | O163: 118888.03 | P163: 13.50608225 | Q163: 3283.42 | R163: 42629.23133 | S163: 0 | T163: 0 | U163: 0.5239177479 | V163: 3514.648671 | W163: 18344.95855 | X163: 10561.55232 | Y163: 9908.667193 | Z163: 19306.12858 | AA163: 212.4714466 | AB163: 884.3776778 | AC163: 772.8328074 | AD163: 12254.99142 | AN163: 678.67 | AO163: 52.3 | CG163: 8507.062145
A164: 164 | G164: (ד) | H164: מניות זרות הנסחרות בארץ | J164: 192953.9819 | K164: 7.451081475 | L164: 2274.637566 | M164: 67915.58913 | N164: 2370.832226 | O164: 57958.53 | P164: 7.268062794 | Q164: 141.77 | R164: 21821.55045 | S164: 0 | T164: 0 | U164: 0.2819372058 | V164: 1799.119545 | W164: 9169.192346 | X164: 5312.6797 | Y164: 4650.760939 | Z164: 9817.062686 | AA164: 106.197654 | AB164: 444.8603001 | AC164: 362.739061 | AD164: 6231.597314 | AN164: 347.41 | AO164: 26.78 | CG164: 2187.671914
A165: 165 | F165: (2) | G165: לא סחיר | J165: 878781.36 | K165: 42.57607239 | L165: 12997.46003 | M165: 388075.0799 | N165: 13547.12397 | O165: 195211.28 | P165: 2562.208733 | Q165: 50087.84 | R165: 9598.484547 | S165: 0 | T165: 0 | U165: 99.39126713 | V165: 791.3654528 | W165: 30243.29197 | X165: 17666.71724 | Y165: 36867.94143 | Z165: 30669.22941 | AA165: 350.2780327 | AB165: 1479.332762 | AC165: 2875.538569 | AD165: 19467.97059 | AN165: 0 | AO165: 0 | CG165: 66148.25
A166: 166 | E166: ב) | F166: בחו"ל | J166: 4407436.071 | K166: 157.5814561 | L166: 48105.86235 | M166: 1436333.432 | N166: 50140.26428 | O166: 1343625.13 | P166: 33642.48607 | Q166: 152460.25 | R166: 301184.7094 | S166: 0 | T166: 0 | U166: 1305.033925 | V166: 24831.75055 | W166: 189794.1824 | X166: 102216.8528 | Y166: 147727.212 | Z166: 202138.5512 | AA166: 2198.197633 | AB166: 8559.187153 | AC166: 11522.07797 | AD166: 128311.9088 | AE166: 0 | AF166: 0 | AG166: 0 | AH166: 91690.3 | AI166: 5415.36 | AJ166: 0 | AK166: 0 | AL166: 0 | AM166: 0 | AN166: 2693.62 | AO166: 374.26 | AP166: 0 | AQ166: 0 | AR166: 0 | AS166: 0 | AT166: 0 | AU166: 0 | AV166: 0 | AW166: 0 | AX166: 0 | AY166: 0 | AZ166: 0 | BA166: 0 | BB166: 0 | BC166: 0 | BD166: 0 | BE166: 0 | BF166: 0 | BG166: 0 | BH166: 0 | BI166: 0 | BJ166: 0 | BK166: 0 | BL166: 0 | BM166: 0 | BN166: 0 | BO166: 0 | BP166: 0 | BQ166: 0 | BR166: 0 | BS166: 0 | BT166: 0 | BU166: 0 | BV166: 0 | BW166: 0 | BX166: 0 | CF166: 0 | CG166: 123007.8609
A167: 167 | F167: (1) | G167: סחיר | J167: 2834297.617 | K167: 107.1311323 | L167: 32704.58105 | M167: 976485.6266 | N167: 34087.66119 | O167: 830902.3 | P167: 58.18300865 | Q167: 4803.46 | R167: 298162.7691 | S167: 0 | T167: 0 | U167: 2.256991353 | V167: 24582.60089 | W167: 128787.4824 | X167: 74348.78185 | Y167: 67476.00595 | Z167: 137278.3659 | AA167: 1491.61758 | AB167: 6225.638148 | AC167: 5262.834052 | AD167: 87140.47407 | AE167: 0 | AF167: 0 | AG167: 0 | AH167: 91690.3 | AI167: 5415.36 | AJ167: 0 | AK167: 0 | AL167: 0 | AM167: 0 | AN167: 2693.62 | AO167: 374.26 | AP167: 0 | AQ167: 0 | AR167: 0 | AS167: 0 | AT167: 0 | AU167: 0 | AV167: 0 | AW167: 0 | AX167: 0 | AY167: 0 | AZ167: 0 | BA167: 0 | BB167: 0 | BC167: 0 | BD167: 0 | BE167: 0 | BF167: 0 | BG167: 0 | BH167: 0 | BI167: 0 | BJ167: 0 | BK167: 0 | BL167: 0 | BM167: 0 | BN167: 0 | BO167: 0 | BP167: 0 | BQ167: 0 | BR167: 0 | BS167: 0 | BT167: 0 | BU167: 0 | BV167: 0 | BW167: 0 | BX167: 0 | CF167: 0 | CG167: 24216.30736
A168: 168 | G168: (א) | H168: חברות ישראליות | J168: 1189805.979 | K168: 45.94545757 | L168: 14026.05302 | M168: 418786.5653 | N168: 14619.21626 | O168: 357388.56 | P168: 42.59758658 | Q168: 874.21 | R168: 134557.7855 | S168: 0 | T168: 0 | U168: 1.652413424 | V168: 11093.87449 | W168: 56539.78578 | X168: 32759.46712 | Y168: 28677.89901 | Z168: 60534.75046 | AA168: 654.8442199 | AB168: 2743.132882 | AC168: 2236.750995 | AD168: 38425.76954 | AN168: 2142.24 | AO168: 165.09 | CG168: 13489.78941
A169: 169 | G169: (ב) | H169: חברות זרות החזקה מתחת ל-10% | J169: 1644489.95 | K169: 61.185609 | L169: 18678.50798 | M169: 557698.4624 | N169: 19468.42402 | O169: 473513.23 | P169: 15.58542207 | Q169: 3929.25 | R169: 163604.7896 | S169: 0 | T169: 0 | U169: 0.6045779286 | V169: 13488.71041 | W169: 72247.61756 | X169: 41589.2686 | Y169: 38798.06984 | Z169: 76743.52983 | AA169: 836.7724445 | AB169: 3482.501403 | AC169: 3026.080163 | AD169: 48714.65017 | AH169: 91690.3 | AI169: 5415.36 | AN169: 551.38 | AO169: 209.17 | CG169: 10726.49952
A170: 170 | G170: (ג) | H170: חברות זרות החזקה של 10% ומעלה | J170: 1.688427562 | K170: 6.571296756e-05 | L170: 0.02006060263 | M170: 0.5989647168 | N170: 0.0209089676 | O170: 0.51 | P170: 0 | Q170: 0 | R170: 0.1940048947 | S170: 0 | T170: 0 | U170: 0 | V170: 0.01599510533 | W170: 0.07908404797 | X170: 0.04613671551 | Y170: 0.03710590158 | Z170: 0.08563884935 | AA170: 0.0009159520324 | AB170: 0.003863284494 | AC170: 0.002894098422 | AD170: 0.05436115065 | AN170: 0 | AO170: 0 | CG170: 0.01842756163
A171: 171 | F171: (2) | G171: לא סחיר | J171: 1573138.454 | K171: 50.45032381 | L171: 15401.2813 | M171: 459847.8053 | N171: 16052.60309 | O171: 512722.83 | P171: 33584.30307 | Q171: 147656.79 | R171: 3021.940338 | S171: 0 | T171: 0 | U171: 1302.776934 | V171: 249.1496623 | W171: 61006.69995 | X171: 27868.071 | Y171: 80251.20608 | Z171: 64860.18522 | AA171: 706.580053 | AB171: 2333.549005 | AC171: 6259.243921 | AD171: 41171.43478 | AE171: 0 | AF171: 0 | AG171: 0 | AH171: 0 | AI171: 0 | AJ171: 0 | AK171: 0 | AL171: 0 | AM171: 0 | AN171: 0 | AO171: 0 | AP171: 0 | AQ171: 0 | AR171: 0 | AS171: 0 | AT171: 0 | AU171: 0 | AV171: 0 | AW171: 0 | AX171: 0 | AY171: 0 | AZ171: 0 | BA171: 0 | BB171: 0 | BC171: 0 | BD171: 0 | BE171: 0 | BF171: 0 | BG171: 0 | BH171: 0 | BI171: 0 | BJ171: 0 | BK171: 0 | BL171: 0 | BM171: 0 | BN171: 0 | BO171: 0 | BP171: 0 | BQ171: 0 | BR171: 0 | BS171: 0 | BT171: 0 | BU171: 0 | BV171: 0 | BW171: 0 | BX171: 0 | CF171: 0 | CG171: 98791.55355
A172: 172 | G172: (א) | H172: חברות ישראליות | J172: 0 | K172: 0 | L172: 0 | M172: 0 | N172: 0 | P172: 0 | R172: 0 | S172: 0 | T172: 0 | U172: 0 | V172: 0 | W172: 0 | X172: 0 | Y172: 0 | Z172: 0 | AA172: 0 | AB172: 0 | AC172: 0 | AD172: 0 | CG172: 0
A173: 173 | G173: (ב) | H173: חברות זרות | J173: 1573138.454 | K173: 50.45032381 | L173: 15401.2813 | M173: 459847.8053 | N173: 16052.60309 | O173: 512722.83 | P173: 33584.30307 | Q173: 147656.79 | R173: 3021.940338 | S173: 0 | T173: 0 | U173: 1302.776934 | V173: 249.1496623 | W173: 61006.69995 | X173: 27868.071 | Y173: 80251.20608 | Z173: 64860.18522 | AA173: 706.580053 | AB173: 2333.549005 | AC173: 6259.243921 | AD173: 41171.43478 | AN173: 0 | AO173: 0 | CG173: 98791.55355
A174: 174 | J174: 0 | W174: 0 | X174: 0 | Y174: 0 | Z174: 0 | AA174: 0 | AB174: 0 | AC174: 0 | AD174: 0 | CG174: 0
A175: 175 | D175: 5) | E175: השקעות בקרנות סל | J175: 13053421.75 | K175: 362.570321 | L175: 110684.0766 | M175: 3304778.915 | N175: 115364.9177 | O175: 2830449.07 | P175: 69511.20385 | Q175: 193893.53 | R175: 815369.7023 | S175: 0 | T175: 0 | U175: 2696.426151 | V175: 67224.71766 | W175: 416014.7738 | X175: 259308.1522 | Y175: 299571.5465 | Z175: 494326.3952 | AA175: 4818.286208 | AB175: 21713.31775 | AC175: 23365.27353 | AD175: 313784.5948 | AE175: 1439734.14 | AF175: 355454.64 | AG175: 670794.18 | AH175: 760554.99 | AI175: 6849.67 | AJ175: 320103.88 | AK175: 17304.37 | AL175: 0 | AM175: 9255.6 | AN175: 1122.01 | AO175: 2072.58 | AP175: 0 | AQ175: 0 | AR175: 0 | AS175: 0 | AT175: 0 | AU175: 0 | AV175: 0 | AW175: 0 | AX175: 0 | AY175: 0 | AZ175: 0 | BA175: 0 | BB175: 0 | BC175: 0 | BD175: 0 | BE175: 0 | BF175: 0 | BG175: 0 | BH175: 0 | BI175: 0 | BJ175: 0 | BK175: 0 | BL175: 0 | BM175: 0 | BN175: 0 | BO175: 0 | BP175: 0 | BQ175: 0 | BR175: 0 | BS175: 0 | BT175: 0 | BU175: 0 | BV175: 0 | BW175: 0 | BX175: 0 | CF175: 0 | CG175: 126938.2175
A176: 176 | E176: א) | F176: בישראל | J176: 3692436.683 | K176: 50.38281503 | L176: 15380.67248 | M176: 459232.472 | N176: 16031.12272 | O176: 415568.07 | P176: 50978.69302 | Q176: 148290.97 | R176: 77793.11736 | S176: 0 | T176: 0 | U176: 1977.526979 | V176: 6413.802641 | W176: 54884.24032 | X176: 46456.80281 | Y176: 92156.69954 | Z176: 104713.8693 | AA176: 635.66968 | AB176: 3890.087189 | AC176: 7187.820465 | AD176: 66469.44074 | AE176: 1439734.14 | AF176: 0 | AG176: 588149.94 | AH176: 6043.47 | AI176: 1048.18 | AJ176: 0 | AK176: 14647.57 | AL176: 0 | AM176: 9255.6 | AN176: 1122.01 | AO176: 879.33 | AP176: 0 | AQ176: 0 | AR176: 0 | AS176: 0 | AT176: 0 | AU176: 0 | AV176: 0 | AW176: 0 | AX176: 0 | AY176: 0 | AZ176: 0 | BA176: 0 | BB176: 0 | BC176: 0 | BD176: 0 | BE176: 0 | BF176: 0 | BG176: 0 | BH176: 0 | BI176: 0 | BJ176: 0 | BK176: 0 | BL176: 0 | BM176: 0 | BN176: 0 | BO176: 0 | BP176: 0 | BQ176: 0 | BR176: 0 | BS176: 0 | BT176: 0 | BU176: 0 | BV176: 0 | BW176: 0 | BX176: 0 | CF176: 0 | CG176: 63444.98286
A177: 177 | F177: (1) | G177: שמחקות מדדי מניות בארץ | J177: 743259.7359 | K177: 24.06417497 | L177: 7346.219013 | M177: 219341.6654 | N177: 7656.891379 | O177: 187184.13 | P177: 22.31439676 | Q177: 457.87 | R177: 70475.34511 | S177: 0 | T177: 0 | U177: 0.8656032357 | V177: 5810.474885 | W177: 29613.01188 | X177: 17157.94922 | Y177: 15020.19994 | Z177: 31705.3922 | AA177: 342.978124 | AB177: 1436.730778 | AC177: 1171.510059 | AD177: 20125.6978 | AG177: 118593.63 | AK177: 1498.97 | AN177: 1122.01 | AO177: 86.47 | CG177: 7065.345944
A178: 178 | F178: (2) | G178: שמחקות מדדי מניות בחו"ל | J178: 1730812.672 | K178: 3.252661495 | L178: 992.9600224 | M178: 29647.56491 | N178: 1034.952405 | O178: 25128.36 | P178: 0.05775943942 | Q178: 238.13 | R178: 7316.294111 | S178: 0 | T178: 0 | U178: 0.002240560576 | V178: 603.2058888 | W178: 3799.336061 | X178: 2184.333568 | Y178: 2067.670707 | Z178: 4030.366113 | AA178: 44.00393855 | AB178: 182.9064317 | AC178: 161.2692934 | AD178: 2558.363887 | AE178: 1439734.14 | AG178: 200969.04 | AH178: 6043.3 | AI178: 1048.18 | AK178: 2540.15 | AO178: 10.98 | CG178: 473.8522985
A179: 179 | F179: (3) | G179: שמחקות מדדי אג"ח בארץ | J179: 1218364.275 | K179: 23.06597856 | L179: 7041.493443 | M179: 210243.2416 | N179: 7339.278934 | O179: 203255.58 | P179: 50956.32086 | Q179: 147594.97 | R179: 1.478132531 | S179: 0 | T179: 0 | U179: 1976.659136 | V179: 0.1218674692 | W179: 21471.89238 | X179: 27114.52002 | Y179: 75068.82889 | Z179: 68978.11094 | AA179: 248.6876174 | AB179: 2270.449979 | AC179: 5855.041112 | AD179: 43785.37906 | AG179: 268587.27 | AH179: 0.17 | AK179: 10608.45 | AM179: 9255.6 | AO179: 781.88 | CG179: 55905.78461
A180: 180 | F180: (4) | G180: שמחקות מדדי אג"ח בחו"ל | J180: 0 | K180: 0 | L180: 0 | M180: 0 | N180: 0 | P180: 0 | R180: 0 | S180: 0 | T180: 0 | U180: 0 | V180: 0 | W180: 0 | X180: 0 | Y180: 0 | Z180: 0 | AA180: 0 | AB180: 0 | AC180: 0 | AD180: 0 | CG180: 0
A181: 181 | F181: (5) | G181: בחסר | J181: 0 | K181: 0 | L181: 0 | M181: 0 | N181: 0 | P181: 0 | R181: 0 | S181: 0 | T181: 0 | U181: 0 | V181: 0 | W181: 0 | X181: 0 | Y181: 0 | Z181: 0 | AA181: 0 | AB181: 0 | AC181: 0 | AD181: 0 | CG181: 0
A182: 182 | F182: (6) | G182: אחר | J182: 0 | K182: 0 | L182: 0 | M182: 0 | N182: 0 | P182: 0 | R182: 0 | S182: 0 | T182: 0 | U182: 0 | V182: 0 | W182: 0 | X182: 0 | Y182: 0 | Z182: 0 | AA182: 0 | AB182: 0 | AC182: 0 | AD182: 0 | CG182: 0
A183: 183 | E183: ב) | F183: בחו"ל | J183: 9360985.065 | K183: 312.187506 | L183: 95303.40413 | M183: 2845546.443 | N183: 99333.79501 | O183: 2414881 | P183: 18532.51083 | Q183: 45602.56 | R183: 737576.585 | S183: 0 | T183: 0 | U183: 718.8991712 | V183: 60810.91502 | W183: 361130.5335 | X183: 212851.3494 | Y183: 207414.8469 | Z183: 389612.526 | AA183: 4182.616527 | AB183: 17823.23056 | AC183: 16177.45307 | AD183: 247315.154 | AE183: 0 | AF183: 355454.64 | AG183: 82644.24 | AH183: 754511.52 | AI183: 5801.49 | AJ183: 320103.88 | AK183: 2656.8 | AL183: 0 | AM183: 0 | AN183: 0 | AO183: 1193.25 | AP183: 0 | AQ183: 0 | AR183: 0 | AS183: 0 | AT183: 0 | AU183: 0 | AV183: 0 | AW183: 0 | AX183: 0 | AY183: 0 | AZ183: 0 | BA183: 0 | BB183: 0 | BC183: 0 | BD183: 0 | BE183: 0 | BF183: 0 | BG183: 0 | BH183: 0 | BI183: 0 | BJ183: 0 | BK183: 0 | BL183: 0 | BM183: 0 | BN183: 0 | BO183: 0 | BP183: 0 | BQ183: 0 | BR183: 0 | BS183: 0 | BT183: 0 | BU183: 0 | BV183: 0 | BW183: 0 | BX183: 0 | CF183: 0 | CG183: 63493.23466
A184: 184 | F184: (1) | G184: שמחקות מדדי מניות | J184: 8549919.208 | K184: 304.6758854 | L184: 93010.28542 | M184: 2777079.049 | N184: 96943.70007 | O184: 2353766.37 | P184: 5.621918771 | Q184: 22305.58 | R184: 737576.585 | S184: 0 | T184: 0 | U184: 0.2180812294 | V184: 60810.91502 | W184: 355882.6742 | X184: 204605.768 | Y184: 193678.3813 | Z184: 377523.1893 | AA184: 4121.835783 | AB184: 17132.78204 | AC184: 15106.06868 | AD184: 239641.1807 | AG184: 22616.39 | AH184: 606202.49 | AI184: 5801.49 | AJ184: 320103.88 | AK184: 285.87 | AO184: 1028.82 | CG184: 44385.38826
A185: 185 | F185: (2) | G185: שמחקות מדדים אחרים | J185: 811065.8564 | K185: 7.511620573 | L185: 2293.11871 | M185: 68467.39473 | N185: 2390.094939 | O185: 61114.63 | P185: 18526.88891 | Q185: 23296.98 | R185: 0 | S185: 0 | T185: 0 | U185: 718.6810899 | V185: 0 | W185: 5247.859255 | X185: 8245.581477 | Y185: 13736.46562 | Z185: 12089.33663 | AA185: 60.78074497 | AB185: 690.4485228 | AC185: 1071.384383 | AD185: 7673.973373 | AF185: 355454.64 | AG185: 60027.85 | AH185: 148309.03 | AK185: 2370.93 | AO185: 164.43 | CG185: 19107.8464
A186: 186 | F186: (3) | G186: בחסר | J186: 0 | K186: 0 | L186: 0 | M186: 0 | N186: 0 | P186: 0 | R186: 0 | S186: 0 | T186: 0 | U186: 0 | V186: 0 | W186: 0 | X186: 0 | Y186: 0 | Z186: 0 | AA186: 0 | AB186: 0 | AC186: 0 | AD186: 0 | CG186: 0
A187: 187 | F187: (4) | G187: אחר | J187: 0 | K187: 0 | L187: 0 | M187: 0 | N187: 0 | P187: 0 | R187: 0 | S187: 0 | T187: 0 | U187: 0 | V187: 0 | W187: 0 | X187: 0 | Y187: 0 | Z187: 0 | AA187: 0 | AB187: 0 | AC187: 0 | AD187: 0 | CG187: 0
A188: 188 | W188: 0 | X188: 0 | Y188: 0 | Z188: 0 | AA188: 0 | AB188: 0 | AC188: 0 | AD188: 0 | CG188: 0
A189: 189 | D189: 6) | E189: תעודות השתתפות בקרנות נאמנות | J189: 2636978.573 | K189: 73.42509688 | L189: 22414.93188 | M189: 669259.7213 | N189: 23362.86168 | O189: 579929.5 | P189: 41523.45353 | Q189: 98912.63 | R189: 97751.3709 | S189: 0 | T189: 0 | U189: 1610.746466 | V189: 8059.299102 | W189: 71294.2297 | X189: 62473.39428 | Y189: 83530.15256 | Z189: 102432.328 | AA189: 825.7302992 | AB189: 5231.245718 | AC189: 6514.98744 | AD189: 65021.18203 | AE189: 0 | AF189: 0 | AG189: 0 | AH189: 611172.02 | AI189: 0 | AJ189: 0 | AK189: 0 | AL189: 0 | AM189: 0 | AN189: 12.98 | AO189: 819.39 | AP189: 0 | AQ189: 0 | AR189: 0 | AS189: 0 | AT189: 0 | AU189: 0 | AV189: 0 | AW189: 0 | AX189: 0 | AY189: 0 | AZ189: 0 | BA189: 0 | BB189: 0 | BC189: 0 | BD189: 0 | BE189: 0 | BF189: 0 | BG189: 0 | BH189: 0 | BI189: 0 | BJ189: 0 | BK189: 0 | BL189: 0 | BM189: 0 | BN189: 0 | BO189: 0 | BP189: 0 | BQ189: 0 | BR189: 0 | BS189: 0 | BT189: 0 | BU189: 0 | BV189: 0 | BW189: 0 | BX189: 0 | CF189: 0 | CG189: 84752.99277
A190: 190 | E190: א) | F190: בישראל | J190: 7334.296613 | K190: 0.2783087923 | L190: 84.96104039 | M190: 2536.746599 | N190: 88.55405163 | O190: 2164.83 | P190: 0.2599174774 | Q190: 92.89 | R190: 815.0699925 | S190: 0 | T190: 0 | U190: 0.01008252259 | V190: 67.20000751 | W190: 342.4833552 | X190: 198.4340134 | Y190: 210.4461208 | Z190: 366.6810847 | AA190: 3.96664477 | AB190: 16.61598661 | AC190: 16.4138792 | AD190: 232.7589153 | AN190: 12.98 | AO190: 1 | CG190: 81.71661319
A191: 191 | E191: ב) | F191: בחו"ל | J191: 2629644.276 | K191: 73.14678809 | L191: 22329.97084 | M191: 666722.9747 | N191: 23274.30763 | O191: 577764.67 | P191: 41523.19362 | Q191: 98819.74 | R191: 96936.30091 | S191: 0 | T191: 0 | U191: 1610.736384 | V191: 7992.099094 | W191: 70951.74635 | X191: 62274.96027 | Y191: 83319.70644 | Z191: 102065.6469 | AA191: 821.7636544 | AB191: 5214.629731 | AC191: 6498.573561 | AD191: 64788.42311 | AE191: 0 | AF191: 0 | AG191: 0 | AH191: 611172.02 | AI191: 0 | AJ191: 0 | AK191: 0 | AL191: 0 | AM191: 0 | AN191: 0 | AO191: 818.39 | AP191: 0 | AQ191: 0 | AR191: 0 | AS191: 0 | AT191: 0 | AU191: 0 | AV191: 0 | AW191: 0 | AX191: 0 | AY191: 0 | AZ191: 0 | BA191: 0 | BB191: 0 | BC191: 0 | BD191: 0 | BE191: 0 | BF191: 0 | BG191: 0 | BH191: 0 | BI191: 0 | BJ191: 0 | BK191: 0 | BL191: 0 | BM191: 0 | BN191: 0 | BO191: 0 | BP191: 0 | BQ191: 0 | BR191: 0 | BS191: 0 | BT191: 0 | BU191: 0 | BV191: 0 | BW191: 0 | BX191: 0 | CF191: 0 | CG191: 84671.27615
A192: 192 | F192: (1) | G192: אג"ח קנצרני | J192: 1504923.375 | K192: 30.8642391 | L192: 9422.116502 | M192: 281323.3205 | N192: 9820.578789 | O192: 251111.77 | P192: 41522.34648 | Q192: 95724.15 | R192: 1829.00424 | S192: 0 | T192: 0 | U192: 1610.703522 | V192: 150.7957597 | W192: 21562.75995 | X192: 33879.9803 | Y192: 56441.27668 | Z192: 49673.46269 | AA192: 249.7400463 | AB192: 2836.959699 | AC192: 4402.173316 | AD192: 31531.32731 | AH192: 532612.87 | AO192: 675.63 | CG192: 78511.5446
A193: 193 | F193: (2) | G193: אג"ח ממשלתי | J193: 0 | K193: 0 | L193: 0 | M193: 0 | N193: 0 | P193: 0 | R193: 0 | S193: 0 | T193: 0 | U193: 0 | V193: 0 | W193: 0 | X193: 0 | Y193: 0 | Z193: 0 | AA193: 0 | AB193: 0 | AC193: 0 | AD193: 0 | CG193: 0
A194: 194 | F194: (3) | G194: מניות | J194: 1124720.902 | K194: 42.28254899 | L194: 12907.85434 | M194: 385399.6543 | N194: 13453.72884 | O194: 326652.9 | P194: 0.8471384449 | Q194: 3095.59 | R194: 95107.29667 | S194: 0 | T194: 0 | U194: 0.03286155511 | V194: 7841.303335 | W194: 49388.98639 | X194: 28394.97997 | Y194: 26878.42976 | Z194: 52392.18419 | AA194: 572.0236081 | AB194: 2377.670032 | AC194: 2096.400245 | AD194: 33257.09581 | AH194: 78559.15 | AO194: 142.76 | CG194: 6159.731554
A195: 195 | F195: (4) | G195: אחר | J195: 0 | K195: 0 | L195: 0 | M195: 0 | N195: 0 | P195: 0 | R195: 0 | S195: 0 | T195: 0 | U195: 0 | V195: 0 | W195: 0 | X195: 0 | Y195: 0 | Z195: 0 | AA195: 0 | AB195: 0 | AC195: 0 | AD195: 0 | CG195: 0
A196: 196 | W196: 0 | X196: 0 | Y196: 0 | Z196: 0 | AA196: 0 | AB196: 0 | AC196: 0 | AD196: 0 | CG196: 0
A197: 197 | D197: 7) | E197: קרנות השקעה | J197: 11233012.21 | K197: 367.7831028 | L197: 112275.4146 | M197: 3352292.709 | N197: 117023.5536 | O197: 3723130.85 | P197: 52334.25893 | Q197: 834913.76 | R197: 330921.2716 | S197: 0 | T197: 0 | U197: 2030.111069 | V197: 27283.43841 | W197: 492174.5309 | X197: 211822.5837 | Y197: 568564.8987 | Z197: 404172.5984 | AA197: 5700.369082 | AB197: 17737.08627 | AC197: 44345.58133 | AD197: 256557.4816 | AE197: 0 | AF197: 0 | AG197: 0 | AH197: 0 | AI197: 0 | AJ197: 0 | AK197: 0 | AL197: 0 | AM197: 0 | AN197: 0 | AO197: 0 | AP197: 0 | AQ197: 0 | AR197: 0 | AS197: 0 | AT197: 0 | AU197: 0 | AV197: 0 | AW197: 0 | AX197: 0 | AY197: 0 | AZ197: 0 | BA197: 0 | BB197: 0 | BC197: 0 | BD197: 0 | BE197: 0 | BF197: 0 | BG197: 0 | BH197: 0 | BI197: 0 | BJ197: 0 | BK197: 0 | BL197: 0 | BM197: 0 | BN197: 0 | BO197: 0 | BP197: 0 | BQ197: 0 | BR197: 0 | BS197: 0 | BT197: 0 | BU197: 0 | BV197: 0 | BW197: 0 | BX197: 0 | CF197: 0 | CG197: 679363.93
A198: 198 | E198: א) | F198: בישראל | J198: 1783632.96 | K198: 83.47552769 | L198: 25483.08884 | M198: 760868.0243 | N198: 26560.77132 | O198: 558096.88 | P198: 5158.457029 | Q198: 105159.27 | R198: 40510.70712 | S198: 0 | T198: 0 | U198: 200.1029713 | V198: 3339.982882 | W198: 36865.86923 | X198: 15851.38512 | Y198: 53823.72435 | Z198: 27733.4746 | AA198: 426.9807719 | AB198: 1327.324879 | AC198: 4198.015655 | AD198: 17604.4354 | AE198: 0 | AF198: 0 | AG198: 0 | AH198: 0 | AI198: 0 | AJ198: 0 | AK198: 0 | AL198: 0 | AM198: 0 | AN198: 0 | AO198: 0 | AP198: 0 | AQ198: 0 | AR198: 0 | AS198: 0 | AT198: 0 | AU198: 0 | AV198: 0 | AW198: 0 | AX198: 0 | AY198: 0 | AZ198: 0 | BA198: 0 | BB198: 0 | BC198: 0 | BD198: 0 | BE198: 0 | BF198: 0 | BG198: 0 | BH198: 0 | BI198: 0 | BJ198: 0 | BK198: 0 | BL198: 0 | BM198: 0 | BN198: 0 | BO198: 0 | BP198: 0 | BQ198: 0 | BR198: 0 | BS198: 0 | BT198: 0 | BU198: 0 | BV198: 0 | BW198: 0 | BX198: 0 | CF198: 0 | CG198: 100340.99
A199: 199 | F199: (1) | G199: קרנות הון סיכון | J199: 153058.35 | K199: 6.826860648 | L199: 2084.077827 | M199: 62225.90162 | N199: 2172.213695 | O199: 45181.55 | P199: 0 | Q199: 6651.66 | R199: 4802.997654 | S199: 0 | T199: 0 | U199: 0 | V199: 395.9923459 | W199: 5964.696837 | X199: 2643.8368 | Y199: 4449.12747 | Z199: 3340.410607 | AA199: 69.08316317 | AB199: 221.3832 | AC199: 347.0125302 | AD199: 2120.399393 | CG199: 10381.18
A200: 200 | F200: (2) | G200: קרנות גידור | J200: 304676.33 | K200: 14.09751588 | L200: 4303.635561 | M200: 128496.9302 | N200: 4485.636757 | O200: 108484.36 | P200: 1487.555856 | Q200: 12412.36 | R200: 13997.81345 | S200: 0 | T200: 0 | U200: 57.70414392 | V200: 1154.076555 | W200: 5700.882338 | X200: 1764.240319 | Y200: 6527.039405 | Z200: 3488.357836 | AA200: 66.02766169 | AB200: 147.7296811 | AC200: 509.0805948 | AD200: 2214.312164 | CG200: 9364.49
A201: 201 | F201: (3) | G201: קרנות נדל"ן | J201: 96225.11 | K201: 1.303757598 | L201: 398.0061175 | M201: 11883.57229 | N201: 414.8378377 | O201: 37796.47 | P201: 635.9795609 | Q201: 13217.45 | R201: 0 | S201: 0 | T201: 0 | U201: 24.67043907 | V201: 0 | W201: 5394.629363 | X201: 2164.559372 | Y201: 6895.408243 | Z201: 4500.908771 | AA201: 62.48063744 | AB201: 181.250628 | AC201: 537.8117569 | AD201: 2857.051229 | CG201: 9258.72
A202: 202 | F202: (4) | G202: קרנות השקעה אחרות | J202: 1229673.17 | K202: 61.24739357 | L202: 18697.36933 | M202: 558261.6202 | N202: 19488.08303 | O202: 366634.5 | P202: 3034.921612 | Q202: 72877.8 | R202: 21709.89602 | S202: 0 | T202: 0 | U202: 117.7283883 | V202: 1789.913982 | W202: 19805.66069 | X202: 9278.74863 | Y202: 35952.14923 | Z202: 16403.79739 | AA202: 229.3893096 | AB202: 776.9613704 | AC202: 2804.110773 | AD202: 10412.67261 | CG202: 71336.6
... 334 more rows
